Cogmind - Beta 16.1 @@@ ROGUE MODE // 2026.05.03 @ 20:25:53 Player: AngelSpirit Result: Establishing 0b11! Performance ------------- Evolutions (9) 4500 Regions Visited (27) 5400 Robots Destroyed (829) 4145 Value Destroyed (50534) 50534 Prototype IDs (382) 7640 Alien Tech Used (7) 1400 Bonus (78655) 78655 TOTAL SCORE: 152274 Bonus ------- Triggered High Security 500 High Alert Combat Kills 22395 Follower Combat Kills 4913 Hunted by Unchained 500 Network Hubs Disabled 600 Registered with UFD 300 Met Optimus in HQ 500 Met Imprinter 300 Met Zhirov 300 Met Warlord at Base 500 MAIN.C Attacked Warlord 500 Warlord Defense Kills 508 Built Enhanced Grunts 300 A7 Reached Mainframe 300 Met R17 at Cetus 500 Met R17 at Research 2000 Scanned by Researcher 500 Recovered Sigix Corpse 2000 Destroyed MAIN.C Guards 500 Met MAIN.C 5000 Hacked MAIN.C 300 Destroyed MAIN.C Shell 5000 Destroyed MAIN.C 10000 Destroyed A8 300 Destroyed A5 500 Destroyed A4 700 Destroyed A3 800 Destroyed A2 1000 Destroyed Architect 15000 Win 3000 Friendly Fire -861 Cogmind --------- Core Integrity 122/1600 Matter 290/300 Energy 827/840 System Corruption 2% Temperature Cool (9) Movement Walking (115) Location 0b11 Command Parts ------- > --- POWER (3) -------- Zero-point Reactor Vortex Chain Reactor > --- PROPULSION (6) --- Centrium Leg Heavy Shield Leg High-density Centrium Leg High-density Centrium Leg Experimental Biometal Leg > --- UTILITY (13) ----- Experimental Power Amplifier Concept Thermoelectric Network Concept Antigrav Storage Unit Spectral Analyzer Concept Countertargeting System Concept Core Analysis Suite Quantum Capacitor SHELL Armor (fused) Advanced Force Field Concept Impact Drone Bay (3/6) > --- WEAPON (3) ------- Concept Plasma Driver Sigix Broadsword > --- INVENTORY (25) --- Improved Quantum Reactor Zero-point Reactor Experimental Biometal Leg Experimental Biometal Leg Concept Phasing Heat Sink Coolant Network Concept Chromion Battery (800) Precision Energy Filter Experimental Weapon Cycler Centrium Heavy Armor Plating Thermal Barrier Advanced Force Field Concept Impact Drone Bay (0/6) High-powered Transdimensional Reconstructor Improved Potential Cannon Perforator Sigix Corpse Peak State ------------ > --- POWER ------------ Hybrid Graviton Reactor Vortex Chain Reactor > --- PROPULSION ------- Experimental Armored Exoskeleton Concept Biometal Exoskeleton > --- UTILITY ---------- Concept Phasing Heat Sink Concept Thermoelectric Network Concept Antigrav Storage Unit Concept Countertargeting System Concept Core Analysis Suite Quantum Capacitor Experimental Reaction Control System Concept Cloak Mesh Concept Cloak Mesh SHELL Armor > --- WEAPON ----------- Concept Lightning Penetrator Concept Plasma Driver Concept Deflector Sword > --- INVENTORY -------- Experimental Armored Exoskeleton Concept Thermoelectric Network Concept Chromion Battery Advanced Sensor Array Advanced Signal Interpreter Concept Weapon Articulator Concept Core Analysis Suite Experimental ECM Suite Thermal Barrier Experimental EM Shield Advanced Point Defense System Concept Impact Drone Bay Concept Impact Drone Bay High-powered Transdimensional Reconstructor Subatomic Replicator Concept Disintegration Ray Vortex Driver Concept Plasma Driver Concept Plasma Driver Improved Potential Cannon Concept Rapid Grenade Launcher [Rating: 300] Favorites ----------- Power Vortex Chain Reactor Engine F-cell Engine Power Core Light Nuclear Core Reactor Vortex Chain Reactor Propulsion Enhanced Biometal Leg Treads Light Treads Leg Enhanced Biometal Leg Wheel Armored Wheel Hover Unit Improved Airjet Utility Advanced Signal Interpreter Device Concept Countertargeting System Storage High-capacity Storage Unit Processor Advanced Signal Interpreter Hackware Improved Hacking Suite Protection SHELL Armor Weapon Enhanced Coil Gun Energy Gun Variable Charge Gun Energy Cannon Subdweller Beam Cannon Ballistic Gun Enhanced Coil Gun Ballistic Cannon Hypervelocity Mass Driver Launcher Heavy Missile Launcher Special Weapon Advanced Remote Datajack Impact Weapon Heavy Flail Slashing Weapon Concept Deflector Sword Piercing Weapon Plasma Lance Build | -11 -10 -10 -8 -8 -6 -6 -6 -6 -5 -5 -5 -5 -5 -4 -4 -4 -4 -4 -4 -3 -3 -2 -2 -2 -1 -1 -1 ------- Run | Yrd Mat Sub Rec Scr Fac Low Low Zio Pro Fac Upp Upp War Pro Fac Ext Cet Arc Hub Res Tes Res Qua Frg Acc Com Ac0 Slots Evolved 18 | . . . . . 8 . . . . 2 . . . . 2 . . . . 2 . 2 . . 2 . . Power 2 | . . . . . . . . . . . . . . . 1 . . . . 1 . . . . . . . Propulsion 4 | . . . . . 3 . . . . 1 . . . . . . . . . . . . . . . . . Utility 11 | . . . . . 4 . . . . 1 . . . . 1 . . . . 1 . 2 . . 2 . . Weapon 1 | . . . . . 1 . . . . . . . . . . . . . . . . . . . . . . Parts Attached 432 | 7 9 15 10 9 35 6 16 7 1 42 3 2 22 . 13 3 4 . 4 29 18 15 27 34 58 31 12 Power 53 | 1 . 3 1 . 5 . 2 . . 2 . . . . 3 . . . 2 4 3 3 5 3 11 4 1 Engine 8 | 1 . 3 . . 2 . 1 . . 1 . . . . . . . . . . . . . . . . . Core 8 | . . . 1 . 3 . 1 . . 1 . . . . 1 . . . 1 . . . . . . . . Reactor 37 | . . . . . . . . . . . . . . . 2 . . . 1 4 3 3 5 3 11 4 1 Propulsion 104 | 2 4 2 . 2 9 1 4 . . 17 2 1 9 . 2 . . . . 5 1 6 1 9 17 9 1 Treads 4 | . 2 1 . . . . 1 . . . . . . . . . . . . . . . . . . . . Leg 85 | . . . . 1 2 1 3 . . 16 2 1 8 . 2 . . . . 5 1 6 1 9 17 9 1 Wheel 10 | 2 2 1 . 1 4 . . . . . . . . . . . . . . . . . . . . . . Hover 5 | . . . . . 3 . . . . 1 . . 1 . . . . . . . . . . . . . . Flight . | . . . . . . . . . . . . . . . . . . . . . . . . . . . . Utility 173 | 2 1 4 5 4 15 3 5 4 . 15 1 1 7 . 6 2 3 . 1 11 9 4 15 14 20 14 7 Device 99 | 1 . 1 . 2 4 3 2 1 . 3 1 1 4 . 4 2 3 . 1 11 3 3 8 10 17 10 4 Storage 12 | 1 1 . 1 1 2 . . . . 2 . . . . . . . . . . 2 . . 2 . . . Processor 24 | . . . . . 2 . . 2 . 2 . . 3 . 1 . . . . . 2 . 3 2 3 3 1 Hackware 10 | . . . . . 4 . 1 1 . 2 . . . . 1 . . . . . . . 1 . . . . Protection 28 | . . 3 4 1 3 . 2 . . 6 . . . . . . . . . . 2 1 3 . . 1 2 Artifact . | . . . . . . . . . . . . . . . . . . . . . . . . . . . . Weapon 102 | 2 4 6 4 3 6 2 5 3 1 8 . . 6 . 2 1 1 . 1 9 5 2 6 8 10 4 3 Energy Gun 14 | . . 1 1 . . 2 2 . . 2 . . 1 . . . . . . 1 . . . 3 1 . . Energy Cannon 26 | . . 3 . . 5 . 1 . . . . . 1 . . . . . . 3 4 1 1 2 2 2 1 Ballistic Gun 18 | 2 . 1 . 2 1 . 1 . . 4 . . 1 . . . 1 . . . . . . . 5 . . Ballistic Cannon 15 | . 3 1 1 . . . . . . 1 . . 1 . 1 1 . . 1 2 1 . 1 . . 1 . Launcher 10 | . 1 . 1 . . . 1 1 1 . . . . . 1 . . . . 1 . . 2 . 1 . . Special Weapon 9 | . . . . 1 . . . 2 . . . . 2 . . . . . . . . 1 . 1 1 1 . Impact Weapon 3 | . . . 1 . . . . . . 1 . . . . . . . . . . . . 1 . . . . Slashing Weapon 6 | . . . . . . . . . . . . . . . . . . . . 1 . . 1 2 . . 2 Piercing Weapon 1 | . . . . . . . . . . . . . . . . . . . . 1 . . . . . . . Special Melee Weapon . | . . . . . . . . . . . . . . . . . . . . . . . . . . . . Unidentified Prototypes 85 | . . . . . 7 1 1 6 . 6 . . 13 . 2 . . . . 8 14 2 13 8 4 . . Corrupted Parts 11 | . . . . . . . . . . . . . . . . . . . 1 . . . . 7 . 3 . System Corruption 63 | . . . . . . . . . . . . . . . . . . . 10 . . . . 48 . 5 . Parts Lost 82 | . . 2 3 . 20 . 2 . . 7 . 1 . 1 1 1 . . 1 3 2 8 2 4 12 2 10 Power 18 | . . 1 1 . 5 . . . . . . . . . 1 . . . 1 1 1 3 1 . 2 . 1 Propulsion 24 | . . . . . 5 . 1 . . 6 . 1 . . . . . . . . 1 3 . . 4 . 3 Utility 24 | . . 1 1 . 5 . . . . 1 . . . 1 . 1 . . . 2 . 1 1 2 4 1 3 Weapon 16 | . . . 1 . 5 . 1 . . . . . . . . . . . . . . 1 . 2 2 1 3 Highest Loss Streak 20 | . . 1 3 . 20 . 1 . . 2 . 1 . 1 1 1 . . 1 3 1 2 1 1 7 1 5 To Critical Strikes 5 | . . . . . . . 1 . . . . . . . . . . . . . . . . . 4 . . Average Backups 15 | 2 12 7 14 11 14 12 12 13 12 14 18 17 17 18 18 19 20 20 20 19 19 17 17 18 21 21 15 Power . | . . . . . . . . 1 1 . 1 1 . 1 . . . . . . . . 1 . 1 2 2 Propulsion 2 | 2 5 1 3 2 3 1 . . . . 1 . 1 7 7 7 7 7 7 7 6 3 1 . 2 4 . Utility 6 | . 2 1 6 6 6 8 8 7 7 7 8 8 7 6 5 8 7 7 7 7 8 8 7 6 8 7 8 Weapon 3 | . 3 2 2 1 1 1 1 2 2 3 5 4 4 4 4 4 5 6 6 5 4 4 5 7 6 4 2 Tool/Special . | . . . . . . . . . . . . . . . . . . . . . . . . . . . . Unused Backups 102 | . 5 7 1 14 11 . . 2 . 7 . . 7 . 1 . . . . 2 4 5 3 10 10 6 7 Power 11 | . . . . 1 1 . . . . 1 . . 1 . . . . . . . . . 1 . 4 2 . Propulsion 31 | . 3 1 . 3 4 . . . . 1 . . . . . . . . . . 3 5 . 3 5 1 2 Utility 35 | . . 1 1 8 5 . . 2 . 3 . . 4 . . . . . . 1 . . 2 3 . 1 4 Weapon 21 | . 2 4 . 2 1 . . . . 2 . . 1 . 1 . . . . 1 1 . . 4 1 1 . Tool/Special 4 | . . 1 . . . . . . . . . . 1 . . . . . . . . . . . . 1 1 Average Slot Usage (%) 85 | . 100 90 96 95 77 80 91 94 100 94 94 90 93 93 93 88 88 89 89 92 91 81 80 71 72 71 74 Engine 3 | . 14 13 5 . . . 3 . . 4 5 5 5 5 3 . . . . . . . . . . . . Core 1 | . . . 6 14 5 6 2 6 6 . . . . . 2 . . . . . . . . . . . . Reactor 4 | . . . . . . . . . . . . . . . 3 5 5 5 4 12 13 11 9 8 8 8 8 Treads 2 | . . 22 . . . . 2 . . . . . . . . . . . . . . . . . . . . Leg 16 | . . . . . . 1 17 26 26 29 35 31 35 35 31 31 31 31 31 27 28 25 25 19 10 14 19 Wheel 4 | . 27 5 28 28 16 . . . . . . . . . . . . . . . . . . . . . . Hover 1 | . . . . . . 20 12 6 6 3 . . . . . . . . . . . . . . . . . Device 13 | . 14 4 . 2 4 12 11 7 13 7 5 5 8 4 9 14 15 15 14 18 17 16 16 19 24 24 24 Storage 5 | . 14 6 14 10 5 6 6 6 6 5 5 5 5 5 5 5 5 5 5 4 4 4 4 4 4 4 4 Processor 7 | . . . . . 4 6 6 7 13 15 17 16 12 17 15 10 10 10 10 9 9 8 8 5 9 7 7 Protection 5 | . . 8 13 10 3 5 . 4 . 4 5 5 5 5 5 5 5 5 5 3 3 4 4 4 4 4 5 Energy Gun 1 | . . 1 4 . . 7 12 6 6 . . . . . . . . . . . . . . 1 2 . . Energy Cannon 5 | . . 23 . . 8 5 3 5 6 . . . . . . . . . . 6 11 7 5 3 1 4 3 Ballistic Gun 3 | . 8 . 5 . 3 . 2 5 . 13 11 11 10 11 7 5 4 5 5 . . . . . 3 . . Ballistic Cannon 3 | . 18 1 8 14 2 . . . . 1 5 5 4 5 7 10 10 10 10 3 . . . . . . . Impact Weapon 1 | . . . 7 13 3 . . . . . . . . . . . . . . . . . . . . . . Peak Build Rating 300 | 7 13 16 23 28 76 69 75 81 80 97 99 99 133 133 153 156 155 153 157 169 193 206 223 277 300 285 283 Average Rating 137 | 5 10 13 19 22 58 59 66 76 76 88 93 90 107 131 144 152 152 153 150 163 174 196 198 236 280 265 261 On Entrance 117 | . 7 13 15 23 27 39 68 75 80 77 93 93 90 127 133 153 153 153 153 149 165 191 183 214 266 285 274 Avg Prop Armor Cover (%) 3 | . . . . . . 5 9 1 3 2 . . 2 . 1 1 . . 2 . . 2 2 . . . . Naked Turns . | . . . . . . . . . . . . . . . . . . . . . . . . . . . . Heaviest Build 180 | 15 34 44 61 64 91 51 62 66 58 94 93 93 94 93 120 129 129 129 129 145 154 161 164 180 155 179 176 Greatest Support 182 | 26 40 40 24 24 70 26 70 70 70 121 111 114 169 169 131 154 154 154 154 164 162 176 166 172 160 180 182 Greatest Overweight (x) 2 | . 2 1 2 2 2 1 2 . . 1 . . . . . . . . . . 1 . . 1 1 1 . Average Overweight (x) . | . . . 1 1 . 1 . . . . . . . . . . . . . . . . . . . . . Largest Inventory Capacity 25 | 8 15 15 20 20 20 15 15 15 15 20 20 20 20 20 20 20 20 20 20 20 20 20 20 25 25 25 25 Average Capacity 18 | 7 14 9 18 16 19 15 15 15 15 15 20 20 20 20 20 20 20 20 20 20 20 20 20 22 25 25 25 Most Carried 25 | 6 15 15 20 20 20 15 15 15 15 20 20 20 20 20 20 20 20 20 20 20 20 20 20 25 25 25 25 Average Carried 17 | 2 12 9 17 14 17 14 14 14 13 15 19 19 19 19 19 19 19 20 20 19 19 18 19 21 24 23 19 Final Capacity 25 | 8 15 15 20 20 15 15 15 15 15 20 20 20 20 20 20 20 20 20 20 20 20 20 20 25 25 25 25 Final Carried 25 | 6 15 14 19 20 14 15 15 15 14 20 20 20 20 20 20 20 20 20 20 19 20 18 20 25 25 24 21 Class Distribution -------------------- 25% | Mutant 11% | Scavenger-Gunner 9% | Scavenger-Mutant 9% | Commander-Mutant 9% | Scavenger-Skirmisher 6% | Subdweller-Mutant 6% | Gunner 5% | Scientist-Gunner 4% | Trapper-Gunner 3% | Skirmisher Dominant Class ---------------- Mutant | -10/Materials Subdweller-Mutant | -10/Subcaves Commander-Mutant | -8/Recycling Commander-Mutant | -8/Scraptown Hacker-Mutant | -6/Factory Mutant | -6/Lower Caves Scavenger-Skirmisher | -6/Lower Caves Scavenger-Skirmisher | -6/Zion Skirmisher | -5/Proximity Caves Scavenger-Gunner | -5/Factory Scientist-Gunner | -5/Upper Caves Gunner | -5/Upper Caves Trapper-Gunner | -5/Warlord Trapper-Gunner | -4/Proximity Caves Scavenger-Gunner | -4/Factory Scavenger-Skirmisher | -4/Extension Commander-Gunner | -4/Cetus Commander-Gunner | -4/Archives Scavenger-Skirmisher | -4/Hub_04(d) Scavenger-Skirmisher | -3/Research Scientist-Skirmisher | -3/Testing Scientist-Gunner | -2/Research Scavenger-Mutant | -2/Quarantine Scavenger-Mutant | -2/Protoforge Mutant | -1/Access Mutant | -1/Command Mutant | -1/Access_0 Resources | -11 -10 -10 -8 -8 -6 -6 -6 -6 -5 -5 -5 -5 -5 -4 -4 -4 -4 -4 -4 -3 -3 -2 -2 -2 -1 -1 -1 ----------- Run | Yrd Mat Sub Rec Scr Fac Low Low Zio Pro Fac Upp Upp War Pro Fac Ext Cet Arc Hub Res Tes Res Qua Frg Acc Com Ac0 Matter Collected 21016 | 183 842 677 186 790 635 204 454 130 10 2328 365 393 462 175 2255 1496 299 33 1343 605 529 838 779 1755 2268 619 363 Remotely 385 | . . . . . . . . . . . . . . . . . 90 . 295 . . . . . . . . Salvage Created 49061 | 86 743 915 434 . 1698 103 410 . 48 4959 689 307 280 199 2690 2445 292 33 1763 1136 1066 3554 1340 4836 14818 3352 865 Parts 2069 | 14 44 69 15 . 82 5 15 . 6 212 24 12 17 11 139 112 12 2 70 40 62 139 97 213 503 140 14 Haulers Intercepted 21 | . 2 . . . 2 . . . . 5 . . . . 3 . . . 2 2 1 1 . . 3 . . Recyclers Shooed 12 | . . . . . 2 . . . . 2 . . . . 3 2 . . . . . 2 . . 1 . . Parts Field Recycled 17 | . . . . 17 . . . . . . . . . . . . . . . . . . . . . . . Retrieved Matter 543 | . . . . 543 . . . . . . . . . . . . . . . . . . . . . . . Parts Self-Destructed 106 | . . 16 . . . 3 2 . 39 . 19 14 . 13 . . . . . . . . . . . . . Prevented 12 | . . . . . . . 7 . . . 1 4 . . . . . . . . . . . . . . . Parts Restored 9 | . . . . . . . . . . . . . . . . . . . . . . . . 9 . . . Faulty 9 | . . . . . . . . . . . . . . . . . . . . . . . . 9 . . . Kills | -11 -10 -10 -8 -8 -6 -6 -6 -6 -5 -5 -5 -5 -5 -4 -4 -4 -4 -4 -4 -3 -3 -2 -2 -2 -1 -1 -1 ------- Run | Yrd Mat Sub Rec Scr Fac Low Low Zio Pro Fac Upp Upp War Pro Fac Ext Cet Arc Hub Res Tes Res Qua Frg Acc Com Ac0 Combat Hostiles Destroyed 669 | . 16 23 8 . 28 1 8 . 6 56 9 4 3 3 33 31 5 . 20 11 14 50 15 67 221 18 19 Melee 13 | . . . 2 . . . . . . . . . . . . . . . . . . . . 7 4 . . Guns 104 | . 4 . 4 . 1 1 4 . . 41 6 2 . 1 12 4 . . 2 1 . . . 2 18 . 1 Cannons 370 | . 5 21 . . 10 . 1 . 2 9 3 2 3 2 19 24 5 . 18 9 13 39 2 32 127 15 9 AOE 96 | . 7 1 2 . 13 . 2 . 4 6 . . . . 2 3 . . . . 1 7 . 6 38 . 4 Classes Destroyed 35 | 1 6 4 2 . 9 1 1 . 1 . . . 1 . . . . . . 2 . 1 1 5 . . . Worker 23 | . . . . . 4 . . . . 4 . . . . 5 1 . . . 1 . 1 . 1 6 . . Builder 23 | . . . . . 4 . . . . 2 . . . . 4 . . . . 1 1 2 . . 9 . . Tunneler 5 | 4 . . . . . . . . . 1 . . . . . . . . . . . . . . . . . Hauler 21 | . 2 . . . 2 . . . . 5 . . . . 3 . . . 2 2 1 1 . . 3 . . Recycler 26 | . 3 . . . 2 . . . . 9 . . . . 1 3 . . 2 . . 4 . . 2 . . Minesweeper 7 | . . . . . . 1 2 . . . . 3 . 1 . . . . . . . . . . . . . Mechanic 8 | . . . . . 1 . . . . 1 . . . . . . . . . . . . . . 6 . . Operator 13 | . 1 . . . 1 . . . . 3 . . . . 4 2 . . . . . . . 1 1 . . Drone 38 | . . . . . . . . . 1 . . . . . . . . . . . . . . 5 30 . 2 Turret 1 | . . 1 . . . . . . . . . . . . . . . . . . . . . . . . . Watcher 34 | . 3 . . . . . . . . 6 . . . . 6 3 . . 2 2 2 3 . 2 4 1 . Swarmer 63 | . 6 3 . . 4 . 4 . 5 8 2 . . . 4 3 . . . . . 9 . . 15 . . Saboteur 12 | . . . . . . . . . . . . . . . . . . . . . . . . 1 11 . . Grunt 193 | . 10 2 3 . 8 1 2 . . 21 3 4 2 1 5 15 . . 6 3 . 11 . 25 66 5 . Brawler 21 | . . . . . 1 . . . . 5 1 . . . . 1 . . . . . . . 1 12 . . Duelist 25 | . . . . . 1 . . . . 1 1 . . . . . . . 1 . . 1 . 1 19 . . Protector 14 | . . . . . 2 . . . . 1 . . . . . . . . . . . . . 2 9 . . Researcher 3 | . . . . . . . . . . . . . . . . . . . . . . . . 3 . . . Sentry 47 | . . 1 2 . . . 1 . . 5 2 . . . 6 7 . . 4 3 . 3 . 6 5 2 . Demolisher 4 | . . . 1 . . . . . . . . . . . . 2 . . . 1 . . . . . . . Specialist 8 | . . . . . 2 . . . . . . . . . . . . . . . . 4 2 . . . . Hunter 45 | . . . . . 3 . . . . 5 . . . . 8 1 . . 4 . 5 2 . 4 13 . . Programmer 105 | . . . 2 . 6 . . . . 10 . . . 2 10 1 . . 5 . 8 17 . 10 29 5 . Behemoth 6 | . . . . . 1 . . . . . . . . . . 1 . . . . . 1 . . 3 . . Cetus Guard 5 | . . . . . . . . . . . . . . . . . 5 . . . . . . . . . . Quarantine Guard 12 | . . . . . . . . . . . . . . . . . . . . . . . 12 . . . . M Guard 2 | . . . . . . . . . . . . . . . . . . . . . . . . . . 2 . Enhanced Grunt 11 | . . . . . . . . . . . . . . . . . . . . . . . . . . . 11 Enhanced Sentry 1 | . . . . . . . . . . . . . . . . . . . . . . . . . . . 1 Enhanced Hunter 4 | . . . . . . . . . . . . . . . . . . . . . . . . . . . 4 Hotshot 1 | . . . . . . . . . . . . . . . . . . . . . . . . 1 . . . Decapitator 4 | . . . . . . . . . . . . . . . . . . . . . . . . 4 . . . Immortal 4 | . . . . . . . . . . . . . . . . . . . . . . . . 4 . . . Combat Programmer 2 | . . . . . . . . . . . . . . . . . . . . . . . . . . 2 . Investigator 1 | . . . . . . . . . . . . . . . . . . . . . . . . . 1 . . Striker 3 | . . . . . . . . . . . . . . . . . . . . 3 . . . . . . . Executioner 11 | . . . . . . . . . . . . . 1 . . . . . . 1 . . . . 9 . . Alpha 7 2 | . . . . . . . . . . . . . . . . . . . . . . . . 2 . . . Fortress 1 | . . . . . . . . . . . . . . . . . . . . . . . 1 . . . . V-Series 1 | . . . . . . . . . . . . . . . . . . . . . . . . 1 . . . Protovariant Y 1 | . . . . . . . . . . . . . . . . . . . . . 1 . . . . . . Protovariant D 1 | . . . . . . . . . . . . . . . . . . . . . . 1 . . . . . Cobbler 1 | . . 1 . . . . . . . . . . . . . . . . . . . . . . . . . Subdweller 17 | . . 17 . . . . . . . . . . . . . . . . . . . . . . . . . Assembled 2 | . . . . . . . . . . . . . . . . . . . . . . 2 . . . . . Thug 1 | . . . . . . . . . . . . . 1 . . . . . . . . . . . . . . Mutant 1 | . . . . . . . 1 . . . . . . . . . . . . . . . . . . . . Revision 1 | . . . . . . . . . . . . . . . . . . . . 1 . . . . . . . Best Kill Streak 52 | 4 5 2 3 . 23 1 2 . 5 9 8 3 3 2 13 5 3 . 3 4 4 10 3 15 52 5 4 Combat Bots Only 47 | . 5 2 3 . 14 1 2 . 5 7 8 3 3 2 9 4 3 . 3 4 3 9 3 15 47 5 4 Max Kills in Single Turn 5 | 1 4 1 2 . 4 1 2 . 3 4 2 1 1 1 2 3 1 . 1 2 2 5 1 3 5 2 2 Gunslinging 1 | . . . . . . . . . . 1 . . . . . . . . . . . . . . 1 . . Exploded 5 | . 4 1 2 . 3 . 2 . 2 3 . . . . 2 3 . . . . 1 5 . 2 5 . 2 Melee 1 | . . . 1 . . . . . . . . . . . . . . . . . . . . 1 1 . . Uniques/NPCs Destroyed 9 | . . . . . . . . . . . . . . . . . . . . . . . . . . 2 7 MAIN.C Shell (-1/Command) MAIN.C (-1/Command) A8 (-1/Access_0) A6 (-1/Access_0) A5 (-1/Access_0) A4 (-1/Access_0) A2 (-1/Access_0) Architect (-1/Access_0) A3 (-1/Access_0) Combat | -11 -10 -10 -8 -8 -6 -6 -6 -6 -5 -5 -5 -5 -5 -4 -4 -4 -4 -4 -4 -3 -3 -2 -2 -2 -1 -1 -1 -------- Run | Yrd Mat Sub Rec Scr Fac Low Low Zio Pro Fac Upp Upp War Pro Fac Ext Cet Arc Hub Res Tes Res Qua Frg Acc Com Ac0 Hostile Shots Fired 3507 | . 29 95 22 . 343 2 88 . 6 160 12 9 4 14 159 62 17 . 121 61 145 289 64 388 834 142 441 Missed 1312 | . 11 22 3 . 110 1 45 . 1 39 2 3 3 5 84 33 6 . 58 29 74 164 24 127 232 33 203 Intercepted 4 | . . . . . . . . . . . . . . . . . . . . . . . . . . 4 . Deflected 67 | . . . . . . . . . . . . . . . . . . . . . . . . 3 53 11 . Hits 2195 | . 18 73 19 . 233 1 43 . 5 121 10 6 1 9 75 29 11 . 63 32 71 125 40 261 602 109 238 Melee 51 | . . . . . 3 . . . . 11 . . . . . . . . . 8 . 1 . 16 7 . 5 Projectile 2144 | . 18 73 19 . 230 1 43 . 5 110 10 6 1 9 75 29 11 . 63 24 71 124 40 245 595 109 233 AOE 27 | . . 1 5 . . . . . . . . . . . 1 1 . . 2 4 1 . . 1 6 5 . Critical Strikes 189 | . . 1 . . 11 . 1 . . 15 . 1 . 2 7 . 2 . 6 . 3 3 2 36 65 8 26 Part Disruptions 16 | . . . . . 1 . . . . . . . . . 1 . . . . . 1 . . 1 2 7 3 Damage Taken 42627 | . 229 1335 477 . 3908 18 491 . 74 2718 170 456 46 246 1462 419 161 . 1255 1371 1760 2776 1681 3833 10529 2216 4996 Core 3553 | . 67 74 32 . 793 . 46 . . 230 17 116 . 19 58 39 12 . 63 209 78 143 . 148 800 50 559 Absorbed by Shields 6939 | . . . 7 . 9 . . . . . . . 21 56 . 296 166 . 342 218 . . 121 1765 224 1451 2263 Ignored by Resistances 3826 | . . . . . . . . . . . . . . . . . . . . . . . . 1658 1880 288 . Regen/Repaired (Parts) 11521 | . . . . . . . . . . 521 . . 134 . 66 . . . . . 387 1231 1321 1728 3754 1046 1333 Core Remaining (%) 54 | 100 . . . 30 . . . . 1 . . . . 61 . . . . 85 . 77 . . 72 . . 7 Volleys Fired 2387 | 8 48 181 11 1 80 7 38 . 12 161 15 27 14 10 145 66 14 6 74 70 77 215 73 293 478 161 102 Largest 3 | 2 2 2 2 1 3 3 3 . 1 3 3 3 1 3 3 3 3 1 3 3 3 2 1 1 3 1 2 Hottest 324 | 40 66 160 110 . 123 185 185 . 85 241 114 114 51 119 145 150 150 35 147 324 324 200 94 200 140 200 260 Shots Fired 3399 | 16 93 274 20 1 135 15 78 . 12 360 45 58 14 30 285 166 29 6 138 143 116 215 74 288 525 158 105 Gun 1072 | 16 43 57 19 . 30 8 67 . . 305 30 46 . 20 156 49 1 6 23 4 . . . 24 135 17 16 Cannon 2251 | . 47 200 . . 98 7 9 . 8 55 15 12 13 10 127 116 28 . 115 139 116 214 72 257 366 138 89 Launcher 64 | . 3 17 1 . 7 . 2 . . . . . . . 2 1 . . . . . . 2 5 24 . . Special 12 | . . . . 1 . . . . 4 . . . 1 . . . . . . . . 1 . 2 . 3 . Kinetic 1481 | 16 90 62 12 . 48 . 25 . . 317 45 58 13 30 283 165 29 6 138 28 6 27 . . 83 . . Thermal 1540 | . . 195 8 . 87 15 51 . 8 43 . . . . . . . . . 114 109 180 15 154 366 106 89 Explosive 53 | . 3 17 . . . . . . 4 . . . . . 2 1 . . . . . . 2 . 24 . . Electromagnetic 246 | . . . . . . . 2 . . . . . . . . . . . . . . 7 57 117 34 21 8 Entropic 71 | . . . . . . . . . . . . . . . . . . . . 1 1 . . 15 18 28 8 Robot Hit Streak 24 | 4 8 14 6 7 13 7 9 . 6 13 12 8 11 6 13 11 6 10 21 11 10 17 20 20 24 20 18 Robot Miss Streak 7 | 1 4 4 2 . 5 1 3 . . 3 2 2 2 1 5 5 3 . 3 2 4 6 3 7 6 2 2 Penetration Max 2 | . . . . . 1 . . . . 2 1 1 1 . 2 2 1 . 1 1 1 1 . 1 2 1 . Secondary Targets 13 | . . . 2 . . . . . . 6 . . . . . . . . . . . . . . 5 . . Max Gunslinging Chain 2 | . . . 1 . . . . . . 1 . . . . . . . . . . . . . . 2 . . Capacitor 1126 | . . . . . . . . . . . . . . . . . . . . . . 182 68 268 373 146 89 Shots Hit Robots 1983 | 10 53 99 20 1 81 8 51 . 4 210 24 34 11 17 143 92 10 6 72 70 35 117 48 216 336 141 74 Core Hits 1300 | 4 30 39 13 . 95 4 16 . 6 128 15 13 6 5 82 62 8 2 48 30 22 71 26 119 336 60 60 Critical Kills 173 | . . 1 . . 2 . . . . 16 3 4 4 3 29 29 5 . 21 6 2 10 . . 34 1 3 Critical Parts Destroyed 160 | . 1 . . . 8 . . . . 13 4 6 5 1 45 28 6 . 24 6 2 10 . . 1 . . Critical Strikes 374 | . 1 1 . . 10 . 2 . 1 34 7 10 9 5 75 63 13 . 46 13 4 20 1 16 37 3 3 Burn 2 | . . . . . . . 2 . . . . . . . . . . . . . . . . . . . . Meltdown 40 | . . 1 . . 1 . . . . . . . . . . . . . . . 1 3 . . 30 1 3 Destroy 307 | . 1 . . . 6 . . . . 34 7 10 9 5 75 63 13 . 46 13 3 17 . . 5 . . Corrupt 4 | . . . . . . . . . . . . . . . . . . . . . . . 1 2 1 . . Smash 3 | . . . . . 3 . . . . . . . . . . . . . . . . . . . . . . Sever 6 | . . . . . . . . . 1 . . . . . . . . . . . . . . 2 1 2 . Sunder 12 | . . . . . . . . . . . . . . . . . . . . . . . . 12 . . . Melee Attacks 103 | . . . 6 . 15 . . . . . . . . . . . . . . 1 . . 6 23 22 30 . Kinetic 3 | . . . . . . . . . . . . . . . . . . . . . . . 3 . . . . Impact 21 | . . . 6 . 15 . . . . . . . . . . . . . . . . . . . . . . Slashing 79 | . . . . . . . . . . . . . . . . . . . . 1 . . 3 23 22 30 . Piercing . | . . . . . . . . . . . . . . . . . . . . . . . . . . . . Sneak Attacks 12 | . . . 3 . 1 . . . . . . . . . . . . . . . . . . 6 2 . . Combat Hostiles . | . . . . . . . . . . . . . . . . . . . . . . . . . . . . Follow-up Attacks . | . . . . . . . . . . . . . . . . . . . . . . . . . . . . Damage Inflicted 142109 | 144 1151 2657 1008 . 7331 201 1289 . 646 11212 799 1044 196 445 4733 2824 481 154 2174 2714 2699 9602 1700 12509 42655 12060 19681 Guns 21396 | 144 326 252 295 . 418 136 833 . . 8565 682 858 . 321 2351 924 24 154 221 136 . . . 735 3170 221 630 Cannons 81885 | . 574 2233 . . 1899 65 247 . . 779 117 186 196 124 1609 1495 457 . 1359 2495 2219 6470 1604 8316 28891 8616 11934 Explosions 30772 | . 251 172 270 . 4478 . 209 . 501 1656 . . . . 447 256 . . 570 . 462 2742 . 1610 10031 . 7117 Melee 6625 | . . . 443 . 536 . . . . . . . . . . . . . . . . . 96 1848 479 3223 . Ramming 1286 | . . . . . . . . . . 212 . . . . 326 149 . . 24 83 18 390 . . 84 . . Kinetic 28734 | 144 900 853 447 . 3373 . 250 . . 8680 799 1044 196 445 3960 2419 481 154 1580 474 118 416 96 . 1905 . . Thermal 80434 | . . 1632 118 . 1721 201 830 . . 2267 . . . . 148 . . . . 2157 2563 8019 256 6004 29071 6396 19051 Explosive 13682 | . 251 172 . . 1701 . . . 501 53 . . . . 299 256 . . . . . 598 . . 9851 . . Electromagnetic 6905 | . . . . . . . 209 . . . . . . . . . . . 570 . . 179 1348 3314 737 319 229 Impact 979 | . . . 443 . 536 . . . . . . . . . . . . . . . . . . . . . . Slashing 5695 | . . . . . . . . . 145 . . . . . . . . . . . . . . 1848 479 3223 . Piercing . | . . . . . . . . . . . . . . . . . . . . . . . . . . . . Entropic 4394 | . . . . . . . . . . . . . . . . . . . . . . . . 1343 528 2122 401 Highest Corruption 33 | . . . 1 . 1 1 1 1 . 5 5 3 3 3 2 1 1 1 18 2 12 10 10 33 8 18 2 Average Corruption 4 | . . . 1 . 1 1 1 1 . 3 4 3 3 2 1 1 1 1 6 2 6 4 10 12 6 10 2 Corruption Purged 101 | . . . . . . . . . . . 5 . . . 2 . . . 4 . . . . 67 . 23 . Corruption Blocked 34 | . . . . . . . . . . . . . . . . . . . . . . . 14 . . 20 . Effects 625 | . . . 13 . 2 5 9 . . 47 6 21 1 . 8 13 4 . 16 27 37 37 118 62 130 36 33 Message Errors 148 | . . . 3 . 1 3 2 . . 15 1 4 . . 2 3 2 . 2 6 7 10 23 15 26 13 10 Matter Fused 164 | . . . 5 . . 1 1 . . 11 4 6 1 . 2 6 1 . 1 10 11 10 30 16 33 9 6 Heat Flow Errors 66 | . . . . . . . 1 . . 3 . 2 . . 1 1 . . 4 2 3 4 19 4 18 2 2 Energy Discharges 74 | . . . 2 . 1 . 3 . . 6 1 5 . . . . 1 . 1 3 5 1 15 8 12 4 6 Parts Fused 12 | . . . . . . . . . . 1 . . . . 1 . . . . . 1 1 4 . 3 1 . Data Loss (minor) 72 | . . . 2 . . 1 . . . 5 . 1 . . 2 . . . 4 4 7 6 12 7 17 . 4 Data Loss (major) 27 | . . . . . . . 1 . . 1 . 3 . . . 1 . . 2 . . 1 5 4 8 . 1 Misfires 19 | . . . 1 . . . . . . 1 . . . . . 1 . . . 2 1 1 4 1 3 2 2 Alerts 18 | . . . . . . . 1 . . 3 . . . . . . . . 1 . 1 1 2 1 6 . 2 Misdirections 1 | . . . . . . . . . . . . . . . . . . . . . . . 1 . . . . Weapon Failures 24 | . . . . . . . . . . 1 . . . . . 1 . . 1 . 1 2 3 6 4 5 . Overload Shots 14 | . . . . . 1 . . . . . . . . . . . . . . . 12 . . 1 . . . Effects 1 | . . . . . 1 . . . . . . . . . . . . . . . . . . . . . . Heat Surge 1 | . . . . . 1 . . . . . . . . . . . . . . . . . . . . . . Overflow Damage 7094 | . 14 15 9 . 413 . 20 . 32 273 . . . . 109 51 . . 5 111 302 1080 1 1066 2246 445 902 Projectiles 4362 | . 14 15 . . 41 . 12 . . 38 . . . . 6 . . . 4 79 248 678 1 316 1852 352 706 Explosions 1586 | . . . 5 . 182 . 8 . 32 235 . . . . 53 . . . 1 . 54 305 . 146 369 . 196 Melee 1146 | . . . 4 . 190 . . . . . . . . . 50 51 . . . 32 . 97 . 604 25 93 . Knockbacks 75 | . 5 4 1 . 5 . . . . 5 2 4 . . 23 12 . . 7 1 . 5 . . 1 . . Impact 14 | . . . 1 . 4 . . . . 3 . . . . . 1 . . . 1 . 3 . . 1 . . Kinetic 56 | . 5 4 . . . . . . . 2 2 4 . . 21 10 . . 7 . . 1 . . . . . Secondary 5 | . . . . . 1 . . . . . . . . . 2 1 . . . . . 1 . . . . . Self-Inflicted Damage 1156 | . . 40 25 . 57 . . . . 122 . . . . . . . . 71 . 125 87 . 245 353 . 31 Shots 37 | . . 2 1 . 1 . . . . 3 . . . . . . . . 1 . 2 1 . 14 11 . 1 Rammed . | . . . . . . . . . . . . . . . . . . . . . . . . . . . . Targets Rammed 44 | . . . . . . . . . . 16 . . . . 8 4 . . 1 2 1 9 . . 3 . . Kicked 44 | . . . . . . . . . . 16 . . . . 8 4 . . 1 2 1 9 . . 3 . . Crushed . | . . . . . . . . . . . . . . . . . . . . . . . . . . . . Highest Temperature 396 | 6 21 195 254 . 228 54 239 . . 370 72 210 . 57 336 165 . . 195 153 266 171 230 282 396 223 203 Average Temperature 125 | 6 6 54 88 . 76 27 52 . . 51 28 53 . 24 82 21 . . 50 68 98 56 95 77 167 132 114 Received Heat Transfer 4671 | . 123 333 45 . 691 9 63 . . 546 36 39 . 13 78 39 6 . 169 30 45 198 27 587 1511 73 10 Thermoelectric Energy+ 92195 | . . . . . . . . . . . . . . . . . . . . . . . . . 85772 3807 2616 Effects 15 | . . . . . . . . . . 2 . . . . . . . . . . . . 3 1 9 . . Shutdowns 1 | . . . . . . . . . . . . . . . . . . . . . . . . . 1 . . Energy Bleed 3 | . . . . . . . . . . . . . . . . . . . . . . . . 1 2 . . Interference 11 | . . . . . . . . . . 2 . . . . . . . . . . . . 3 . 6 . . Siege Activations . | . . . . . . . . . . . . . . . . . . . . . . . . . . . . Martial Activations . | . . . . . . . . . . . . . . . . . . . . . . . . . . . . Shielding Activations 2 | . . . . . . . . . . . . . . . . . . . . . . . . . 1 1 . Total Turns 49 | . . . . . . . . . . . . . . . . . . . . . . . . . 8 41 . Longest Duration 41 | . . . . . . . . . . . . . . . . . . . . . . . . . 8 41 . Robots Disrupted 3 | . . . . . . . . . . . . . . . . . . . . . . . . 1 1 . 1 Combat Hostiles 3 | . . . . . . . . . . . . . . . . . . . . . . . . 1 1 . 1 Robots Corrupted 49 | . . . 1 . 2 . . . . . . . . . . . . . . 1 . 4 12 19 5 3 2 Combat Hostiles 44 | . . . 1 . 2 . . . . . . . . . . . . . . . . 1 12 19 4 3 2 Parts Fried 90 | . . . 1 . 1 . 2 . . . . . . . 1 . . . . 4 . 12 27 33 4 4 1 Impact Corruptions 20 | . . . 3 . 5 . . . . . . . . . 3 1 . . . 2 . 5 . . 1 . . Robots Melted 48 | . . 1 . . 2 . 1 . . 1 . . . . . . . . . 1 1 3 . . 34 1 3 Combat Hostiles 42 | . . 1 . . 2 . 1 . . . . . . . . . . . . 1 . 3 . . 30 1 3 Parts Melted 108 | . . 3 . . 1 1 . . . 1 . . . . 1 . . . . 4 7 11 . . 70 9 . Heat Transferred 47747 | . . 2185 119 . 2283 322 1664 . . 2101 . . . . 100 . . . . 1979 2002 6243 222 4564 15355 2268 6340 Parts Sabotaged 7 | . . . . . . . . . . . . . . . . . . . . . . 3 . . 4 . . Parts Stolen . | . . . . . . . . . . . . . . . . . . . . . . . . . . . . Parts Stripped 18 | . . . . . . . . . . . . . . . . . . . . . . . 18 . . . . Power Chain Reactions 3 | . . . . . . . . . . . . . . . . . . . . . . . . 1 2 . . Alert | -11 -10 -10 -8 -8 -6 -6 -6 -6 -5 -5 -5 -5 -5 -4 -4 -4 -4 -4 -4 -3 -3 -2 -2 -2 -1 -1 -1 ------- Run | Yrd Mat Sub Rec Scr Fac Low Low Zio Pro Fac Upp Upp War Pro Fac Ext Cet Arc Hub Res Tes Res Qua Frg Acc Com Ac0 Maximum Alert Level 5 | . 1 . 1 . 4 . . . . 5 . . . . 3 3 3 2 4 2 2 3 1 4 5 5 . Low Security (%) 19 | 100 86 . 90 . 19 . . . . 7 . . . . 40 . . . 7 . 15 . 70 20 . . . Level 1 21 | . 13 . 9 . 20 . . . . 13 . . . . 22 19 . 83 89 75 75 31 29 2 . . . Level 2 11 | . . . . . 17 . . . . 11 . . . . 23 54 71 16 . 24 8 30 . 17 . . . Level 3 11 | . . . . . 24 . . . . 33 . . . . 13 26 28 . . . . 38 . 21 7 . . Level 4 6 | . . . . . 18 . . . . 20 . . . . . . . . 3 . . . . 37 5 . . Level 5 19 | . . . . . . . . . . 14 . . . . . . . . . . . . . . 20 100 . High Security 10 | . . . . . . . . . . . . . . . . . . . . . . . . . 65 . . Max Security . | . . . . . . . . . . . . . . . . . . . . . . . . . . . . Sterilizations 1 | . . . . . . . . . . . . . . . . . . . . . . . . . 1 . . Peak Influence 7037 | 15 231 . 231 . 1448 . . . . 1794 . . . . 933 1082 758 585 1194 633 481 953 327 1568 7037 4673 . Initial 4503 | . 3 . 102 . . . . . . . . . . . 11 315 594 259 187 624 174 258 269 32 924 4503 . Average 1386 | 2 108 . 139 . 616 . . . . 945 . . . . 364 560 672 312 304 339 264 550 150 862 4903 4616 . Influence Increases 29986 | 20 546 465 542 . 2361 25 250 . 115 3139 181 217 151 121 1551 1983 364 408 1487 495 975 1877 696 2146 6825 730 2316 Destroy 0b10 Robot/C 13040 | . 320 140 260 . 1180 20 140 . 100 1100 180 100 120 80 660 880 160 180 400 220 280 960 300 1260 3660 340 . Destroy 0b10 Robot/NC 1010 | 20 45 . 25 . 90 5 10 . 5 160 . 15 5 5 115 60 10 5 30 30 20 55 . 60 200 40 . Destroy Leader 2204 | . 80 10 . . 216 . 10 . 10 232 . 20 . 20 188 76 . . 108 68 56 218 120 154 564 54 . Allied During Kill 1670 | . . . 38 . 375 . . . . . 1 7 26 16 1 849 170 185 . . . 2 . . . . . Trap Triggered on 0b10 10 | . . . 10 . . . . . . . . . . . . . . . . . . . . . . . . Successful Hack 595 | . 18 . 24 . 10 . . . . 96 . . . . 50 12 . . 12 24 202 . 96 27 24 . . Select Force Hacks 240 | . 60 . 180 . . . . . . . . . . . . . . . . . . . . . . . . Disable Machine 2010 | . . . . . 120 . . . . 525 . . . . 195 . . 30 225 30 120 60 120 195 180 45 165 Anti-Garrison Action 850 | . . . . . 150 . . . . 200 . . . . . . . . 150 . . . . 200 150 . . Destroy Structure 7157 | . 23 . 5 . 145 . . . . 766 . . . . 282 106 24 8 472 78 222 507 45 220 1867 236 2151 Partial Spotted 75 | . . . . . . . . . . 15 . . . . . . . . . 30 15 . 15 . . . . Lose Combat Pursuer 1125 | . . 315 . . 75 . 90 . . 45 . 75 . . 60 . . . 90 15 60 75 . 30 180 15 . Influence Decreases 27870 | 15 394 408 672 84 948 921 699 68 115 1346 1146 674 461 164 926 1564 778 519 834 1374 827 1857 1117 664 1328 2760 5207 Entered New Map 13057 | . 2 76 112 84 . 523 99 68 . . 664 158 371 61 7 328 468 389 350 566 137 201 210 26 616 2534 5007 Time Decay 10082 | 15 392 312 490 . 408 398 580 . 115 666 482 486 90 103 579 526 190 50 474 618 510 506 696 598 592 206 . Lost Part 810 | . . 20 30 . 200 . 20 . . 70 . 10 . . 10 10 . . 10 30 20 80 20 40 120 20 100 Lost Ally 730 | . . . 40 . 190 . . . . 10 . 20 . . 30 100 120 80 . 10 10 20 . . . . 100 Purge Threat 3191 | . . . . . 150 . . . . 600 . . . . 300 600 . . . 150 150 1050 191 . . . . Squads Dispatched 149 | . 4 . . . 16 . . . . 16 . . . . 14 6 . . 7 6 6 12 1 16 41 4 . Investigation 20 | . 3 . . . . . . . . 3 . . . . 4 . . . . 4 1 . 1 1 3 . . Extermination 36 | . . . . . 2 . . . . 7 . . . . 5 . . . 2 . 3 5 . 4 7 1 . Reinforcement 31 | . 1 . . . 5 . . . . 3 . . . . 2 3 . . 3 2 2 6 . 2 2 . . Assault 59 | . . . . . 6 . . . . 3 . . . . 3 3 . . 2 . . 1 . 9 29 3 . Garrison 3 | . . . . . 3 . . . . . . . . . . . . . . . . . . . . . . Intercept . | . . . . . . . . . . . . . . . . . . . . . . . . . . . . Searches Triggered . | . . . . . . . . . . . . . . . . . . . . . . . . . . . . Unchained Authorized 1 | . . . . . . . . . . . . . . . . . . . . . . . . . 1 . . Construction Impeded 10 | . . . . . 2 . . . . 2 . . . . 1 1 . . 1 . . 1 . 1 1 . . Haulers Reinforced 3 | . . . . . . . . . . 1 . . . . . . . . . 1 . . . . 1 . . Active Scanning Responses . | . . . . . . . . . . . . . . . . . . . . . . . . . . . . Cargo Convoy Interrupts 1 | . . . . . 1 . . . . . . . . . . . . . . . . . . . . . . Stealth | -11 -10 -10 -8 -8 -6 -6 -6 -6 -5 -5 -5 -5 -5 -4 -4 -4 -4 -4 -4 -3 -3 -2 -2 -2 -1 -1 -1 --------- Run | Yrd Mat Sub Rec Scr Fac Low Low Zio Pro Fac Upp Upp War Pro Fac Ext Cet Arc Hub Res Tes Res Qua Frg Acc Com Ac0 Distress Signals 61 | . . . . . 3 . . . . 2 . . . . 4 3 3 . 4 9 3 3 . 1 6 20 . Communications Jammed . | . . . . . . . . . . . . . . . . . . . . . . . . . . . . Distress Signals . | . . . . . . . . . . . . . . . . . . . . . . . . . . . . Times Spotted 963 | . 16 27 11 . 74 1 10 . 5 69 8 11 23 4 51 52 9 . 33 25 21 75 15 74 264 21 64 Peak Tracking Total 20 | . 5 2 4 . 12 1 4 . 4 7 7 4 10 2 6 8 5 . 13 4 5 9 2 8 20 5 6 Tactical Retreats 45 | . . 4 . . 3 . 4 . . 1 . 5 . . 3 . . . 3 1 2 4 . 2 11 1 1 ECM-based Alert Blocks 1 | . . . . . . . . . . . . . . . . . . . 1 . . . . . . . . Traps | -11 -10 -10 -8 -8 -6 -6 -6 -6 -5 -5 -5 -5 -5 -4 -4 -4 -4 -4 -4 -3 -3 -2 -2 -2 -1 -1 -1 ------- Run | Yrd Mat Sub Rec Scr Fac Low Low Zio Pro Fac Upp Upp War Pro Fac Ext Cet Arc Hub Res Tes Res Qua Frg Acc Com Ac0 Traps Triggered 16 | . 1 1 . . . . . . . 1 . . . . . . . . . 3 1 1 1 5 2 . . Indirectly . | . . . . . . . . . . . . . . . . . . . . . . . . . . . . Trap Hack Attempts . | . . . . . . . . . . . . . . . . . . . . . . . . . . . . Triggered . | . . . . . . . . . . . . . . . . . . . . . . . . . . . . Disarmed . | . . . . . . . . . . . . . . . . . . . . . . . . . . . . Reprogrammed . | . . . . . . . . . . . . . . . . . . . . . . . . . . . . Reused 6 | . . 1 1 . . . 2 . . . . 2 . . . . . . . . . . . . . . . Traps Extracted . | . . . . . . . . . . . . . . . . . . . . . . . . . . . . Installed 11 | . . 1 2 . . . 5 . . . . 2 . . . . . . 1 . . . . . . . . Triggered 4 | . . . 1 . . . 1 . . . . 2 . . . . . . . . . . . . . . . Most Traps Carried 12 | . . 2 2 . . 6 8 6 6 6 6 12 12 12 12 12 12 6 6 5 5 . . . . . . Machines | -11 -10 -10 -8 -8 -6 -6 -6 -6 -5 -5 -5 -5 -5 -4 -4 -4 -4 -4 -4 -3 -3 -2 -2 -2 -1 -1 -1 ---------- Run | Yrd Mat Sub Rec Scr Fac Low Low Zio Pro Fac Upp Upp War Pro Fac Ext Cet Arc Hub Res Tes Res Qua Frg Acc Com Ac0 Machines Disabled 171 | . . 4 . . 9 . 1 . . 35 2 . 1 . 13 3 . 2 16 2 10 4 8 20 24 4 13 Max in Single Turn 14 | . . 1 . . 2 . 1 . . 9 1 . 1 . 3 1 . 1 14 1 1 2 1 2 1 1 1 Garrison Access 12 | . . . . . 1 . . . . 3 . . . . 1 . . . 2 . . . 1 1 3 . . Network Hub 3 | . . . . . . . . . . . . . . . . . . . 3 . . . . . . . . Energy Cycler 1 | . . . . . . . . . . . . . . . . . . . . . . . . . 1 . . Machines Repaired . | . . . . . . . . . . . . . . . . . . . . . . . . . . . . Machines Dismantled 1 | . . . . . . . . . . . . . 1 . . . . . . . . . . . . . . Machines Sabotaged . | . . . . . . . . . . . . . . . . . . . . . . . . . . . . Overloaded Fab Kills . | . . . . . . . . . . . . . . . . . . . . . . . . . . . . Hacking | -11 -10 -10 -8 -8 -6 -6 -6 -6 -5 -5 -5 -5 -5 -4 -4 -4 -4 -4 -4 -3 -3 -2 -2 -2 -1 -1 -1 --------- Run | Yrd Mat Sub Rec Scr Fac Low Low Zio Pro Fac Upp Upp War Pro Fac Ext Cet Arc Hub Res Tes Res Qua Frg Acc Com Ac0 Machines Accessed 100 | . 8 2 12 2 6 1 1 . . 18 . . 1 . 15 1 . . 2 5 5 1 6 4 6 3 1 Terminals 40 | . 6 . 6 . 4 . 1 . . 4 . . . . 5 1 . . 1 . 2 . . 3 4 3 . Fabricators 10 | . . . . . 2 . . . . 3 . . . . 3 . . . . 1 . . . . 1 . . Repair Stations 7 | . . . . . . . . . . 2 . . . . 3 . . . . . . . 2 . . . . Recycling Units 15 | . 2 . 6 . . . . . . 3 . . . . 1 . . . . 2 . . . . 1 . . Scanalyzers 14 | . . . . . . . . . . 3 . . . . 2 . . . . 2 3 1 3 . . . . Garrison Access 7 | . . . . . . . . . . 3 . . . . 1 . . . 1 . . . 1 1 . . . Total Hacks 350 | . 26 4 37 11 18 1 2 . . 58 . . 1 . 42 4 . . 4 28 41 3 30 9 21 7 3 Successful 183 | . 16 4 20 11 6 1 2 . . 39 . . 1 . 26 2 . . 2 6 18 2 17 3 3 1 3 Failed 164 | . 9 . 17 . 12 . . . . 18 . . . . 16 2 . . 2 22 23 . 13 6 18 6 . Catastrophic 35 | . 3 . . . 2 . . . . 4 . . . . 3 . . . . 5 4 . 2 1 10 1 . Database Lockouts 3 | . 1 . . . . . . . . 1 . . . . . . . . . . . 1 . . . . . Manual 138 | . 18 . 24 . 6 . . . . 23 . . . . 16 . 1 . 2 11 17 . 3 8 7 2 . Terminals 161 | . 19 . 20 . 10 . 2 . . 22 . . . . 19 4 . . 2 5 25 . 7 8 11 7 . Fabricators 38 | . . . . . 8 . . . . 11 . . . . 8 . . . . 5 . . . . 6 . . Repair Stations 15 | . . . . . . . . . . 4 . . . . 5 . . . . . . . 6 . . . . Recycling Units 42 | . 7 . 17 . . . . . . 6 . . . . 2 . . . . 6 . . . . 4 . . Scanalyzers 62 | . . . . . . . . . . 11 . . . . 6 . . . . 12 16 3 14 . . . . Garrison Access 12 | . . . . . . . . . . 4 . . . . 2 . . . 2 . . . 3 1 . . . Terminal Hacks 59 | . 4 4 . 11 3 1 2 . . 7 . . 1 . 7 2 . . . 1 8 . 3 1 . 1 3 Record 14 | . 1 3 . 5 . . 2 . . . . . . . . . . . . . . . . . . . 3 Part Schematic 1 | . . . . . 1 . . . . . . . . . . . . . . . . . . . . . . Robot Schematic 1 | . 1 . . . . . . . . . . . . . . . . . . . . . . . . . . Robot Analysis 6 | . . . . 6 . . . . . . . . . . . . . . . . . . . . . . . Prototype ID Bank 2 | . . . . . . . . . . 1 . . . . . . . . . . 1 . . . . . . Open Door 4 | . . . . . . 1 . . . . . . 1 . 1 . . . . . . . . . . 1 . Branch Access Points 1 | . . . . . . . . . . 1 . . . . . . . . . . . . . . . . . Fabricator Index 1 | . . . . . . . . . . . . . . . 1 . . . . . . . . . . . . Alert Level 6 | . . . . . 1 . . . . . . . . . 1 1 . . . 1 1 . 1 . . . . Unreport Threat 5 | . . . . . 1 . . . . . . . . . 1 . . . . . 1 . 2 . . . . Locate Traps 6 | . 2 . . . . . . . . 2 . . . . . 1 . . . . 1 . . . . . . Recall Extermination 1 | . . . . . . . . . . . . . . . 1 . . . . . . . . . . . . Recall Reinforcements 1 | . . . . . . . . . . . . . . . 1 . . . . . . . . . . . . Hauler Manifests 2 | . . . . . . . . . . 1 . . . . 1 . . . . . . . . . . . . Registered Components 1 | . . . . . . . . . . 1 . . . . . . . . . . . . . . . . . Zone Layout 1 | . . . . . . . . . . 1 . . . . . . . . . . . . . . . . . Proto ID Catalog 2 | . . 1 . . . . . . . . . . . . . . . . . . . . . 1 . . . Protovariant Controls 4 | . . . . . . . . . . . . . . . . . . . . . 4 . . . . . . Fabricator Hacks 13 | . . . . . 2 . . . . 4 . . . . 3 . . . . 2 . . . . 2 . . Network Status 3 | . . . . . 1 . . . . . . . . . 1 . . . . . . . . . 1 . . Load Schematic 6 | . . . . . . . . . . 3 . . . . 1 . . . . 1 . . . . 1 . . Build 4 | . . . . . 1 . . . . 1 . . . . 1 . . . . 1 . . . . . . . Repair Station Hacks 10 | . . . . . . . . . . 4 . . . . 3 . . . . . . . 3 . . . . Scan Component 5 | . . . . . . . . . . 2 . . . . 1 . . . . . . . 2 . . . . Repair 4 | . . . . . . . . . . 2 . . . . 1 . . . . . . . 1 . . . . Refit 1 | . . . . . . . . . . . . . . . 1 . . . . . . . . . . . . Recycling Unit Hacks 11 | . 2 . 6 . . . . . . 3 . . . . . . . . . . . . . . . . . Report Inventory 1 | . . . . . . . . . . 1 . . . . . . . . . . . . . . . . . Retrieve Components 10 | . 2 . 6 . . . . . . 2 . . . . . . . . . . . . . . . . . Scanalyzer 33 | . . . . . . . . . . 9 . . . . 6 . . . . 1 6 2 9 . . . . Insert Component 8 | . . . . . . . . . . 2 . . . . 2 . . . . . . 1 3 . . . . Analyze 5 | . . . . . . . . . . 2 . . . . 3 . . . . . . . . . . . . Retrieve Study 20 | . . . . . . . . . . 5 . . . . 1 . . . . 1 6 1 6 . . . . Garrison Access Hacks 5 | . . . . . . . . . . 2 . . . . 1 . . . 1 . . . 1 . . . . Seal Access 5 | . . . . . . . . . . 2 . . . . 1 . . . 1 . . . 1 . . . . Unauthorized Hacks 52 | . 10 . 14 . 1 . . . . 10 . . . . 6 . . . 1 2 4 . 1 2 1 . . Terminals 29 | . 8 . 8 . . . . . . 4 . . . . 3 . . . 1 . 4 . . 1 . . . Track 1 | . . . . . . . . . . . . . . . . . . . . . 1 . . . . . . Assimilate 1 | . . . . . . . . . . . . . . . . . . . . . 1 . . . . . . Botnet 15 | . 2 . 2 . . . . . . 4 . . . . 3 . . . 1 . 2 . . 1 . . . Operators 1 | . 1 . . . . . . . . . . . . . . . . . . . . . . . . . . Skim 11 | . 5 . 6 . . . . . . . . . . . . . . . . . . . . . . . . Fabricators 6 | . . . . . 1 . . . . 3 . . . . 2 . . . . . . . . . . . . Report 1 | . . . . . . . . . . . . . . . 1 . . . . . . . . . . . . Prioritize 1 | . . . . . . . . . . 1 . . . . . . . . . . . . . . . . . Haulers 4 | . . . . . 1 . . . . 2 . . . . 1 . . . . . . . . . . . . Repair Stations 1 | . . . . . . . . . . . . . . . . . . . . . . . 1 . . . . Patch 1 | . . . . . . . . . . . . . . . . . . . . . . . 1 . . . . Recycling Units 14 | . 2 . 6 . . . . . . 2 . . . . 1 . . . . 2 . . . . 1 . . Monitor 1 | . . . . . . . . . . 1 . . . . . . . . . . . . . . . . . Recyclers 4 | . . . . . . . . . . 1 . . . . 1 . . . . 1 . . . . 1 . . Tunnel 8 | . 2 . 6 . . . . . . . . . . . . . . . . . . . . . . . . Fedlink 1 | . . . . . . . . . . . . . . . . . . . . 1 . . . . . . . Scanalyzers . | . . . . . . . . . . . . . . . . . . . . . . . . . . . . Garrison Access 2 | . . . . . . . . . . 1 . . . . . . . . . . . . . 1 . . . Jam 2 | . . . . . . . . . . 1 . . . . . . . . . . . . . 1 . . . Data Cores Recovered 7 | . . . . . . . . . . 2 . . . . 3 1 . . . . . . . . 1 . . Used 2 | . . . . . . . . . . 1 . . . . . . . . . . . . . . 1 . . Hacking Detections 71 | . 7 . 7 . 6 . . . . 12 . . . . 13 1 . . 2 4 5 . 3 2 6 3 . Full Trace Events 12 | . . . 1 . . . . . . 2 . . . . 4 . . . . 2 . . . . 3 . . Feedback Events . | . . . . . . . . . . . . . . . . . . . . . . . . . . . . Feedback Blocked . | . . . . . . . . . . . . . . . . . . . . . . . . . . . . Robot Schematics Acquired 1 | . 1 . . . . . . . . . . . . . . . . . . . . . . . . . . Robots Built 2 | . . . . . . . . . . . . . . . 1 . . . . 1 . . . . . . . Authchips . | . . . . . . . . . . . . . . . . . . . . . . . . . . . . Time 67 | . . . . . . . . . . . . . . . 40 . . . . 27 . . . . . . . Total Robot Build Rating 2 | . . . . . . . . . . . . . . . 1 . . . . 1 . . . . . . . Part Schematics Acquired 4 | . . . . . 1 . . . . 2 . . . . 1 . . . . . . . . . . . . Parts Built 4 | . . . . . 2 . . . . 2 . . . . . . . . . . . . . . . . . Authchips . | . . . . . . . . . . . . . . . . . . . . . . . . . . . . Time 92 | . . . . . 39 . . . . 53 . . . . . . . . . . . . . . . . . Total Part Build Rating 26 | . . . . . 14 . . . . 12 . . . . . . . . . . . . . . . . . Part Studies Acquired 20 | . . . . . . . . . . 5 . . . . 1 . . . . 1 6 1 6 . . . . Parts Repaired 4 | . . . . . . . . . . 2 . . . . 1 . . . . . . . 1 . . . . Time 255 | . . . . . . . . . . 133 . . . . 54 . . . . . . . 68 . . . . Parts Recycled . | . . . . . . . . . . . . . . . . . . . . . . . . . . . . Recycled Matter . | . . . . . . . . . . . . . . . . . . . . . . . . . . . . Retrieved Matter . | . . . . . . . . . . . . . . . . . . . . . . . . . . . . Retrieved Components 27 | . 8 . 8 . . . . . . 11 . . . . . . . . . . . . . . . . . Parts Scanalyzed 3 | . . . . . . . . . . 2 . . . . 1 . . . . . . . . . . . . Part Schematics Acquired 3 | . . . . . . . . . . 2 . . . . 1 . . . . . . . . . . . . Parts Damaged . | . . . . . . . . . . . . . . . . . . . . . . . . . . . . Bothacking | -11 -10 -10 -8 -8 -6 -6 -6 -6 -5 -5 -5 -5 -5 -4 -4 -4 -4 -4 -4 -3 -3 -2 -2 -2 -1 -1 -1 ------------ Run | Yrd Mat Sub Rec Scr Fac Low Low Zio Pro Fac Upp Upp War Pro Fac Ext Cet Arc Hub Res Tes Res Qua Frg Acc Com Ac0 Used RIF Installer . | . . . . . . . . . . . . . . . . . . . . . . . . . . . . Robots Hacked 4 | . . . . . . . . . . . . . . . . . . . . . . 1 . 2 . 1 . Non-combat . | . . . . . . . . . . . . . . . . . . . . . . . . . . . . Combat 2 | . . . . . . . . . . . . . . . . . . . . . . . . 1 . 1 . Robot Hacks Applied 2 | . . . . . . . . . . . . . . . . . . . . . . . . 1 . 1 . parse_system 2 | . . . . . . . . . . . . . . . . . . . . . . . . 1 . 1 . Manual 3 | . . . . . . . . . . . . . . . . . . . . . . 1 . 1 . 1 . Relay Couplers Released 4 | . . . . . 1 . . . . . . . . . . . . . 1 . . . . . 2 . . Machine Destruction 4 | . . . . . 1 . . . . . . . . . . . . . 1 . . . . . 2 . . Fabnet Peak Effective % . | . . . . . . . . . . . . . . . . . . . . . . . . . . . . Robots Rewired 33 | . . . 9 . . . . . . . 1 . 5 . . 17 . . . . 1 . . . . . . Allies Hacked 1 | . . . . . . . . . . . . . . . . . . . . . . 1 . . . . . Hacks Repelled . | . . . . . . . . . . . . . . . . . . . . . . . . . . . . Allies | -11 -10 -10 -8 -8 -6 -6 -6 -6 -5 -5 -5 -5 -5 -4 -4 -4 -4 -4 -4 -3 -3 -2 -2 -2 -1 -1 -1 -------- Run | Yrd Mat Sub Rec Scr Fac Low Low Zio Pro Fac Upp Upp War Pro Fac Ext Cet Arc Hub Res Tes Res Qua Frg Acc Com Ac0 Total Allies 64 | . . . 9 6 . . . . . 1 1 . 5 . 3 28 5 . . 1 2 2 . 1 . . . Largest Group 24 | . . . 6 12 11 . . . . 1 1 1 5 5 2 24 23 22 . 1 1 2 . 1 . . . Highest-Rated Group 1278 | . . . 93 393 378 . . . . 26 29 29 238 233 55 1137 1278 1278 . 14 122 122 . 36 . . . Highest-Rated Ally 159 | . . . 27 57 57 . . . . 26 29 29 64 64 45 159 159 159 . 14 122 122 . 36 . . . Initial UFD Resources 47 | . . . . . 22 22 22 22 24 24 24 24 24 28 28 28 28 28 28 32 42 44 44 44 47 47 47 Total Orders 168 | . . . . 4 . . . . . 15 . . 4 . 19 10 5 3 5 4 5 10 7 . . . 77 STAY 17 | . . . . 3 . . . . . 1 . . 2 . 5 . 2 1 . . 1 2 . . . . . FOLLOW 17 | . . . . 1 . . . . . 1 . . 2 . 5 . 2 2 . . 1 1 . . . . 2 RETURN 134 | . . . . . . . . . . 13 . . . . 9 10 1 . 5 4 3 7 7 . . . 75 Ally Attacks 867 | . . . 23 . 168 . . . . . . 15 27 7 . 124 49 47 . . . . . . . . 407 Total Damage 29992 | . . . 324 . 3096 . . . . . . 156 852 311 . 3775 1528 1700 . . . . . . . . 18250 Kills 111 | . . . 6 . 35 . . . . . . 1 5 1 . 16 5 11 . . . . . . . . 31 Allies Corrupted 8 | . . . . . . . . . . . . . . 4 . . . . . . . . . 1 . . 3 Allies Melted . | . . . . . . . . . . . . . . . . . . . . . . . . . . . . Intel | -11 -10 -10 -8 -8 -6 -6 -6 -6 -5 -5 -5 -5 -5 -4 -4 -4 -4 -4 -4 -3 -3 -2 -2 -2 -1 -1 -1 ------- Run | Yrd Mat Sub Rec Scr Fac Low Low Zio Pro Fac Upp Upp War Pro Fac Ext Cet Arc Hub Res Tes Res Qua Frg Acc Com Ac0 Active Infowar (turns) 30810 | 10 1031 2437 . . 706 947 1700 1296 738 3052 1100 1188 1300 157 1735 621 . . 919 1985 1018 665 1123 458 4431 1 2192 Optics 2194 | . . . . . . . . . . . . . 2 . . . . . . . . . . . . . 2192 Sensors 26360 | . . 2433 . . 706 947 1700 1296 738 3052 1100 1188 1298 157 1735 621 . . 871 1985 1018 648 1123 449 3295 . . Terrain 117 | . . . . . . . . . . . . . . . . . . . . . . 117 . . . . . Seismic 1045 | 10 1031 4 . . . . . . . . . . . . . . . . . . . . . . . . . Cloaking 3214 | . . . . . . . . . . . . . . . . . . . . . . . . 8 3205 1 . ECM 50 | . . . . . . . 1 . . . . . . . . . . . 48 . . . . 1 . . . Robot Analysis Total 6 | . . . . 6 . . . . . . . . . . . . . . . . . . . . . . . Derelict Logs Recovered 16 | . . 3 . 4 . . 3 2 1 . 2 . . 1 . . . . . . . . . . . . . Drone Launches 184 | . . . . . . . . . . 13 . . . . 9 10 1 . 5 4 3 7 7 . . . 125 Drone Recoveries 175 | . . . . . . . . . . 13 . . . . 9 10 1 . 5 4 3 7 7 . . . 116 Exploration | -11 -10 -10 -8 -8 -6 -6 -6 -6 -5 -5 -5 -5 -5 -4 -4 -4 -4 -4 -4 -3 -3 -2 -2 -2 -1 -1 -1 ------------- Run | Yrd Mat Sub Rec Scr Fac Low Low Zio Pro Fac Upp Upp War Pro Fac Ext Cet Arc Hub Res Tes Res Qua Frg Acc Com Ac0 Turns Passed 56601 | 88 1031 7068 1298 4452 1128 947 1783 1296 738 3572 1243 1265 1310 636 2323 1461 393 102 1216 2067 1388 1360 3088 2097 5461 4752 3038 Spaces Moved 39979 | 52 735 4018 870 3597 688 820 1139 1040 469 2451 1054 1062 966 560 1630 754 181 68 748 1637 1051 907 2609 1073 3887 3584 2329 Core 1 | 1 . . . . . . . . . . . . . . . . . . . . . . . . . . . Treads 2968 | . 1 2967 . . . . . . . . . . . . . . . . . . . . . . . . . Legs 28830 | . . . . . 24 . 746 1040 469 2451 1054 1062 966 560 1630 754 181 68 748 1637 1051 907 2609 1073 3887 3584 2329 Wheels 6919 | 51 734 1051 870 3597 616 . . . . . . . . . . . . . . . . . . . . . . Hover 1261 | . . . . . 48 820 393 . . . . . . . . . . . . . . . . . . . . Flight . | . . . . . . . . . . . . . . . . . . . . . . . . . . . . Fastest Speed 40 | 50 90 105 105 90 40 105 115 122 122 105 105 105 102 107 96 96 100 100 100 98 95 95 100 92 110 109 109 Average Speed 113 | 89 103 156 114 113 105 106 126 122 122 107 105 105 105 107 99 97 100 100 100 102 95 97 101 103 114 113 114 Slowest Speed 250 | 100 160 250 120 120 180 115 193 122 122 165 105 105 107 107 101 100 100 100 105 105 165 106 105 170 250 212 115 Overloaded Moves 31 | . . . . . 31 . . . . . . . . . . . . . . . . . . . . . . Propulsion Burnouts . | . . . . . . . . . . . . . . . . . . . . . . . . . . . . Robots Hopped . | . . . . . . . . . . . . . . . . . . . . . . . . . . . . Potential Cave-ins 40 | . . 2 . . . . . . . . . 2 . . . . . . . 5 4 5 . 13 7 . 2 Cave-ins Triggered 1 | . . . . . . . . . . . . 1 . . . . . . . . . . . . . . . Teleports 3 | . . . . . . . . . . . . . . . . . . . . . . . . 1 . 1 1 Exploration Rate (%) 71 | 3 95 96 98 89 23 88 72 84 49 63 96 86 91 71 43 85 66 65 61 43 94 29 96 30 91 91 95 Regions Visited 27 Branch Regions 20 Pre-discovered Areas 17 | . 4 1 6 2 . . 2 1 1 . . . . . . . . . . . . . . . . . . Known Exits Taken 22 | . 1 . . 1 1 1 1 1 1 1 1 1 1 1 1 1 1 1 1 1 1 1 1 1 . . . Unknown Exits Taken 5 | 1 . 1 1 . . . . . . . . . . . . . . . . . . . . . 1 1 . Scrap Searched 40 | . . 16 . 6 . 2 4 4 . . 3 1 . 4 . . . . . . . . . . . . . Spaces Dug 1074 | . 17 57 . . 10 3 . . 8 63 . 15 . . 44 . . . 328 36 67 42 15 118 150 43 58 Terrain Destroyed 3487 | . 21 107 4 . 143 4 . . 79 471 27 43 . 18 163 44 . . 337 53 143 200 17 154 767 134 558 Melee 11 | . . . . . 3 . . . . . . . . . . . . . . 1 . . . 2 4 1 . Projectile 1182 | . 3 66 1 . 31 4 . . 8 225 27 43 . 18 122 37 . . 14 52 61 70 4 32 293 43 28 AOE 2293 | . 18 41 3 . 108 . . . 71 246 . . . . 41 7 . . 323 . 82 130 13 120 470 90 530 Terrain Rammed . | . . . . . . . . . . . . . . . . . . . . . . . . . . . . Walls Destroyed . | . . . . . . . . . . . . . . . . . . . . . . . . . . . . Machines Disabled . | . . . . . . . . . . . . . . . . . . . . . . . . . . . . Actions | -11 -10 -10 -8 -8 -6 -6 -6 -6 -5 -5 -5 -5 -5 -4 -4 -4 -4 -4 -4 -3 -3 -2 -2 -2 -1 -1 -1 --------- Run | Yrd Mat Sub Rec Scr Fac Low Low Zio Pro Fac Upp Upp War Pro Fac Ext Cet Arc Hub Res Tes Res Qua Frg Acc Com Ac0 Total 48872 | 73 911 4526 1139 3969 941 879 1423 1068 623 3078 1155 1162 1237 574 2078 1331 364 96 1067 1894 1321 1333 3020 1983 4717 4225 2685 Wait 4006 | 1 85 219 140 278 69 36 168 . 139 288 61 53 104 3 224 299 157 23 206 101 82 111 212 361 100 312 174 Move 39949 | 51 734 4017 869 3596 687 819 1138 1039 468 2450 1053 1060 965 559 1629 753 180 67 747 1636 1049 906 2608 1072 3886 3583 2328 Hop . | . . . . . . . . . . . . . . . . . . . . . . . . . . . . Pick Up 387 | 6 16 27 10 43 18 4 13 4 1 20 1 4 16 1 6 2 2 . 1 4 10 20 23 49 40 31 15 Fast Attach 339 | 7 4 7 5 7 15 5 11 9 . 38 . 3 20 . 11 1 1 . 4 34 24 7 28 37 31 18 12 Attach 159 | . . 6 3 2 18 3 13 2 1 4 . 1 2 1 2 1 1 . . 3 . 11 5 22 18 18 22 Detach 60 | . . 3 1 1 3 1 8 1 . 2 . . . . 1 . . . . 2 1 1 3 6 5 9 12 Swap 452 | . 12 15 4 5 19 1 8 1 . 52 6 4 12 . 37 25 5 . 29 5 21 34 16 42 72 17 10 Drop 584 | . 12 39 8 36 17 3 21 12 1 47 2 7 36 . 15 2 4 . 4 34 34 19 46 73 56 46 10 Fire 2387 | 8 48 181 11 1 80 7 38 . 12 161 15 27 14 10 145 66 14 6 74 70 77 215 73 293 478 161 102 Melee 103 | . . . 6 . 15 . . . . . . . . . . . . . . 1 . . 6 23 22 30 . Ram . | . . . . . . . . . . . . . . . . . . . . . . . . . . . . Kick 44 | . . . . . . . . . . 16 . . . . 8 4 . . 1 2 1 9 . . 3 . . Crush . | . . . . . . . . . . . . . . . . . . . . . . . . . . . . Escape Stasis 15 | . . . . . . . . . . . . 1 . . . . . . . 2 1 . . 5 6 . . Rewire 356 | . . . 80 . . . . . . . 17 . 60 . . 178 . . . . 21 . . . . . . Trap 11 | . . 1 2 . . . 5 . . . . 2 . . . . . . 1 . . . . . . . . Miscellaneous 20 | . . 11 . . . . . . 1 . . . 8 . . . . . . . . . . . . . . Route ------- -11/Scrapyard -10/Materials (discovered 6 exits: [*Mat x3] / [*Min x2] / *Sub) -10/Subcaves (discovered 3 exits: *Mat x2 / *Rec) -8/Recycling (discovered 2 exits: *Fac / *Scr) -8/Scraptown (discovered 2 exits: *Fac x2) -6/Factory -6/Lower Caves -6/Lower Caves (discovered 2 exits: *Fac / *Zio) -6/Zion -5/Proximity Caves -5/Factory (discovered 6 exits: *Fac x4 / *Upp x2) -5/Upper Caves -5/Upper Caves -5/Warlord -4/Proximity Caves -4/Factory (discovered 9 exits: Res x4 / *Upp x2 / *Ext x2 / Arm) -4/Extension (discovered 3 exits: *Res x2 / *Cet) -4/Cetus (discovered 2 exits: *Res / *Arc) -4/Archives (discovered 2 exits: *Hub x2) -4/Hub_04(d) (discovered 2 exits: *Res x2) -3/Research (discovered 5 exits: Res x3 / *Tes x2) -3/Testing -2/Research (discovered 4 exits: Acc x3 / *Qua) -2/Quarantine (discovered 3 exits: *Acc / [*Sec] / *Frg) -2/Protoforge -1/Access (discovered 2 exits: [*Sur] / *Com) -1/Command (discovered 3 exits: [*Sur x2] / *Ac0) -1/Access_0 0b11 Command History --------- Turn | Location | Event 11 | -11/Scrapyard | Discovered new exit (range 16) 89 | -11/Scrapyard | Entered Materials 309 | -10/Materials | Build established: Mutant 369 | -10/Materials | Discovered new exit (range 13) 395 | -10/Materials | Discovered new exit (range 16) 571 | -10/Materials | Discovered new exit (range 16) 767 | -10/Materials | Discovered new exit (range 11) 830 | -10/Materials | Learned location of 1 exit from Storage 831 | -10/Materials | Central database locked down 876 | -10/Materials | Learned Storage trap positions 913 | -10/Materials | Learned Storage trap positions 949 | -10/Materials | Discovered new exit (range 7) 954 | -10/Materials | Learned location of Storage (-8) 959 | -10/Materials | Identified exit to Subcaves 999 | -10/Materials | Learned location of Mines (-10) 1031 | -10/Materials | Learned location of 2 exits from Subcaves 1120 | -10/Materials | Entered Subcaves 1121 | -10/Subcaves | Approached by a straggling Scientist 1121 | -10/Subcaves | Identified exit to Materials 1763 | -10/Subcaves | Shifting Twisted Machinery released Sub. Power Source 1801 | -10/Subcaves | Shifting Twisted Machinery released Scrap Shield 1807 | -10/Subcaves | A swath of the cavern ceiling suddenly collapsed 1957 | -10/Subcaves | Learned location of 1 exit from Materials 2180 | -10/Subcaves | Build established: Subdweller-Mutant 2305 | -10/Subcaves | Visited 4L-MR0's lab 2403 | -10/Subcaves | A swath of the cavern ceiling suddenly collapsed 2545 | -10/Subcaves | Visited Clippyterm 2550 | -10/Subcaves | Learned Factory fabricator intel 2983 | -10/Subcaves | Ambushed by Subdweller buried in earth 3043 | -10/Subcaves | Ambushed by Subdweller buried in earth 3072 | -10/Subcaves | Discovered new exit (range 13) 3787 | -10/Subcaves | Disturbed a concealed Subdweller 3787 | -10/Subcaves | Disturbed a concealed Subdweller 4050 | -10/Subcaves | Learned Materials terminal intel 4743 | -10/Subcaves | Shifting Twisted Machinery released Sub. Monowheel 4761 | -10/Subcaves | Shifting Twisted Machinery released Scrap Shield 5334 | -10/Subcaves | Disturbed a concealed Subdweller 5936 | -10/Subcaves | Build established: Mutant 6898 | -10/Subcaves | Found Arachnoskeleton 7231 | -10/Subcaves | Ambushed by Subdweller buried in earth 7660 | -10/Subcaves | Core integrity fell below 50% 8188 | -10/Subcaves | Entered Recycling 8577 | -8/Recycling | Discovered new exit (range 16) 8664 | -8/Recycling | P-60 Hacker assimilated allied Defender 3b 8701 | -8/Recycling | Lost 3 parts (1p1u1w) 9058 | -8/Recycling | Build established: Commander-Mutant 9282 | -8/Recycling | Learned Storage garrison access intel 9309 | -8/Recycling | Learned Factory trap positions 9324 | -8/Recycling | Identified exit to Factory 9331 | -8/Recycling | Learned location of 1 exit from Extension 9385 | -8/Recycling | Scanned before Scraplab entrance 9423 | -8/Recycling | Learned Factory stockpile data 9446 | -8/Recycling | Entered Scraplab 9456 | -8/Recycling | Discovered new exit (range 2) 9486 | -8/Recycling | Entered Scraptown 9486 | -8/Scraptown | Accompanied by 6 allies 9486 | -8/Scraptown | System corruption cleaned by C-Scrubber 9674 | -8/Scraptown | Visited Junk Repository 9707 | -8/Scraptown | Visited CPS Storage 9752 | -8/Scraptown | Visited Cyclists 9776 | -8/Scraptown | Visited Junk Repository 9858 | -8/Scraptown | Scanned Subdweller tech in exchange for log data 9861 | -8/Scraptown | Learned location of 1 exit from Proximity Caves 9863 | -8/Scraptown | Learned 8 Research zone layouts 9864 | -8/Scraptown | Learned Research emergency access door positions 9879 | -8/Scraptown | Discovered exit to Factory (range 13) 10197 | -8/Scraptown | Visited IN-MT5's Study 10224 | -8/Scraptown | Visited Fellowship of the Rings 10238 | -8/Scraptown | Visited Comm Corps 10268 | -8/Scraptown | Visited UFD Registry 10268 | -8/Scraptown | Registered with UFD as "Gunstep" 10303 | -8/Scraptown | Visited Research Penetration Think Tank 10344 | -8/Scraptown | Visited Analyses Database 10371 | -8/Scraptown | Visited Scrapoid Research Area 10395 | -8/Scraptown | Visited Scrap Suit Storage 10411 | -8/Scraptown | Visited DA-N13 Charitable Foundation 10429 | -8/Scraptown | Visited Abandonware Association 10446 | -8/Scraptown | Learned abandonware demo "REPAIR.EXE" 10446 | -8/Scraptown | Learned abandonware demo "KABOOM.EXE" 10466 | -8/Scraptown | Visited Derelict Rescue Squad 10473 | -8/Scraptown | Found DRS Beacon 10497 | -8/Scraptown | Visited Scrapoid Pod Storage 10519 | -8/Scraptown | Visited Botcube Research 10543 | -8/Scraptown | Visited Observation Area 10640 | -8/Scraptown | Delivered Scrap Shield to a Scientist 11213 | -8/Scraptown | Entered Cyclist Reading Room 11381 | -8/Scraptown | Found Botcube 11460 | -8/Scraptown | Found DCF Scrap (31 items) 11598 | -8/Scraptown | Found Scrap Suit 12123 | -8/Scraptown | Botcube activated 12143 | -8/Scraptown | Botcube completed mutation into wheeled form, armed with 1 gun, 1 cannon. 12274 | -8/Scraptown | Attached CPS modules to Mutated Botcube. 12736 | -8/Scraptown | Found Scrapoid Pod 13197 | -8/Scraptown | Scrapoid Pod released 08S06-D (x5) 13841 | -8/Scraptown | Met Optimus 13841 | -8/Scraptown | Accepted into 0bPrime 13900 | -8/Scraptown | Discovered exit to Factory (range 3) 13938 | -8/Scraptown | Entered Factory 13938 | -6/Factory | Accompanied by 11 allies 13938 | -6/Factory | Evolved 8 slots: Propulsion x3, Utility x4, Weapon x1 13939 | -6/Factory | Loaded intel: 124 trap records 13941 | -6/Factory | Loaded intel: 6 fabricator locations 14242 | -6/Factory | Build established: Hacker-Mutant 14306 | -6/Factory | Lost 4 allies 14311 | -6/Factory | Fabricated Adv. Particle Charger (x2) 14638 | -6/Factory | First assault squad dispatched 14682 | -6/Factory | Garrison activated, responded to threat 14695 | -6/Factory | Discovered new exit (range 15) 14731 | -6/Factory | Identified exit to Lower Caves 14841 | -6/Factory | Spotted B-75 Beast 14849 | -6/Factory | Destroyed B-75 Beast 14854 | -6/Factory | Cargo convoy interrupted 14883 | -6/Factory | Found Prototype Device 14883 | -6/Factory | Identified Adv. Kinecellerator 14920 | -6/Factory | Attached Arachnoskeleton, gained temporary slots: Propulsion x3 14933 | -6/Factory | Destroyed 14 combat bots 14978 | -6/Factory | Core integrity fell below 50% 14986 | -6/Factory | Found Prototype Processor 14986 | -6/Factory | Identified Exp. Melee Analysis Suite 15023 | -6/Factory | Core integrity fell below 20% 15066 | -6/Factory | Entered Lower Caves 15068 | -6/Lower Caves | UFD Scientist delivered a prototype 15070 | -6/Lower Caves | Found Prototype Protection 15075 | -6/Lower Caves | Lost 20 parts (5p5n5u5w) 15183 | -6/Lower Caves | Build established: Mutant 15804 | -6/Lower Caves | Build established: Skirmisher 15852 | -6/Lower Caves | Discovered new exit (range 12) 15899 | -6/Lower Caves | Identified exit to Lower Caves 16013 | -6/Lower Caves | Entered another Lower Caves area 16014 | -6/Lower Caves | Encountered a Warlord checkpoint 16138 | -6/Lower Caves | Discovered new exit (range 15) 16283 | -6/Lower Caves | Attacked by a delusional Derelict stockpiling parts 16392 | -6/Lower Caves | Learned location of Zion (-6) 16540 | -6/Lower Caves | Identified Enh. Scrap Shield 16617 | -6/Lower Caves | Identified exit to Factory 17253 | -6/Lower Caves | Build established: Scavenger-Skirmisher 17720 | -6/Lower Caves | Identified exit to Zion 17796 | -6/Lower Caves | Entered Zion 17843 | -6/Zion | System corruption cleaned by Quarantine Array 17864 | -6/Zion | Found Prototype Launcher 17864 | -6/Zion | Identified Rocket Array 17905 | -6/Zion | Given the Hacking Drone Bay 17906 | -6/Zion | Found Prototype Device 17915 | -6/Zion | Learned Factory interactive machine intel 17926 | -6/Zion | Discovered new exit (range 16) 18157 | -6/Zion | Received a visual enhancement algorithm 18232 | -6/Zion | Found Prototype Special Weapon 18232 | -6/Zion | Identified RU-N14's Throwing Claymores 18346 | -6/Zion | Turned away by Imprinter 18384 | -6/Zion | Learned Factory garrison access intel 18690 | -6/Zion | Learned location of Warlord (-5) 18735 | -6/Zion | Found Prototype Hackware 18735 | -6/Zion | Identified Exp. System Shield 18741 | -6/Zion | Found Prototype Processor 18741 | -6/Zion | Identified Exp. Targeting Computer 18744 | -6/Zion | Found Prototype Processor 18744 | -6/Zion | Identified Exp. Terrain Scan Processor 18749 | -6/Zion | Identified Hacking Drone Bay 18884 | -6/Zion | Found RU-N14's Throwing Claymores 19090 | -6/Zion | Identified exit to Proximity Caves 19092 | -6/Zion | Entered Proximity Caves 19171 | -5/Proximity Caves | Build established: Skirmisher 19300 | -5/Proximity Caves | Activated DRS Beacon 19830 | -5/Proximity Caves | Entered Factory 19830 | -5/Factory | Evolved 2 slots: Propulsion x1, Utility x1 19831 | -5/Factory | Loaded intel: 54 interactive machine locations 19832 | -5/Factory | Loaded intel: 4 garrison access locations 19986 | -5/Factory | Identified exit to Upper Caves 20356 | -5/Factory | Build established: Hacker-Gunner 20494 | -5/Factory | Identified exit to Factory 20513 | -5/Factory | Fabricated Hyp. Gauss Cannon? 20874 | -5/Factory | Build established: Scavenger-Gunner 20892 | -5/Factory | Repaired Adv. Kinecellerator 21330 | -5/Factory | First assault squad dispatched 21934 | -5/Factory | Build established: Gunner 22383 | -5/Factory | Destroyed 7 combat bots 22837 | -5/Factory | Repaired Imp. Heavy Armor Plating? 22868 | -5/Factory | Build established: Scientist-Gunner 23297 | -5/Factory | Central database locked down 23402 | -5/Factory | Entered Upper Caves 23433 | -5/Upper Caves | Attracted the attention of an 0b10 outpost 23503 | -5/Upper Caves | Destroyed 8 combat bots 23821 | -5/Upper Caves | Encountered a Warlord checkpoint 24294 | -5/Upper Caves | Learned location of 1 exit from Factory 24463 | -5/Upper Caves | Learned Factory trap positions 24534 | -5/Upper Caves | Discovered new exit (range 11) 24544 | -5/Upper Caves | Identified exit to Upper Caves 24645 | -5/Upper Caves | Entered another Upper Caves area 24645 | -5/Upper Caves | Accompanied by 1 ally 24721 | -5/Upper Caves | Spotted B-75 Beast 24765 | -5/Upper Caves | Crushed by falling debris 24962 | -5/Upper Caves | Attracted the attention of an 0b10 checkpoint 25380 | -5/Upper Caves | Build established: Gunner 25614 | -5/Upper Caves | Discovered new exit (range 9) 25629 | -5/Upper Caves | Identified exit to Warlord 25828 | -5/Upper Caves | Build established: Trapper-Gunner 25910 | -5/Upper Caves | Entered Warlord 25946 | -5/Warlord | System corruption cleaned by Quarantine Array 26258 | -5/Warlord | Found Prototype Reactor 26264 | -5/Warlord | Found Prototype Device 26264 | -5/Warlord | Identified System Purifier 26267 | -5/Warlord | Found Prototype Processor 26267 | -5/Warlord | Identified Exp. Armor Integrity Analyzer 26305 | -5/Warlord | Rebuked by Warlord 26330 | -5/Warlord | Warlord's base attacked by MAIN.C 26566 | -5/Warlord | Found Prototype Energy Cannon 26566 | -5/Warlord | Identified Vortex Driver 26570 | -5/Warlord | Found Prototype Energy Gun 26570 | -5/Warlord | Identified Vortex Rail 26579 | -5/Warlord | Found Vortex Driver 26680 | -5/Warlord | Warlord forces counterattacked 26756 | -5/Warlord | P-80 Master assimilated allied O4-TR4(g) 26855 | -5/Warlord | Spotted Executioner 26860 | -5/Warlord | Spotted Executioner 26861 | -5/Warlord | Destroyed Executioner 26871 | -5/Warlord | Discovered new exit (range 15) 26889 | -5/Warlord | Lost 16 allies 26894 | -5/Warlord | Found Prototype Processor 26895 | -5/Warlord | Identified Exp. Core Analyzer 26975 | -5/Warlord | Lost 4 allies 27005 | -5/Warlord | Warlord base infiltrated, sounded retreat 27008 | -5/Warlord | Attached CPS modules to Enhanced Demolisher. 27085 | -5/Warlord | Spotted Executioner 27087 | -5/Warlord | Allies destroyed Executioner 27112 | -5/Warlord | Spotted Striker 27123 | -5/Warlord | Allies destroyed Striker 27131 | -5/Warlord | Found Prototype Device 27131 | -5/Warlord | Identified Exp. Shock Absorption System 27161 | -5/Warlord | Lost 4 allies 27173 | -5/Warlord | Found Adv. Kinecellerator 27207 | -5/Warlord | Identified exit to Proximity Caves 27220 | -5/Warlord | Entered Proximity Caves 27220 | -4/Proximity Caves | Accompanied by 5 allies 27377 | -4/Proximity Caves | Spotted B-86 Titan 27405 | -4/Proximity Caves | Allies destroyed B-86 Titan 27856 | -4/Proximity Caves | Entered Factory 27856 | -4/Factory | Evolved 2 slots: Power x1, Utility x1 27857 | -4/Factory | Identified exit to Research 27858 | -4/Factory | Loaded intel: 74 trap records 27979 | -4/Factory | Identified exit to Upper Caves 27979 | -4/Factory | Identified exit to Extension 27979 | -4/Factory | Identified exit to Armory 28175 | -4/Factory | Watched by a mysterious "MATRIX" hacker. 28237 | -4/Factory | Build established: Scavenger-Gunner 29039 | -4/Factory | Build established: Trapper-Gunner 29275 | -4/Factory | Repaired Adv. Kinecellerator? 29356 | -4/Factory | First assault squad dispatched 29404 | -4/Factory | Destroyed 9 combat bots 29451 | -4/Factory | Found Prototype Launcher 29451 | -4/Factory | Identified Scatter Rocket Array 29494 | -4/Factory | Build established: Scavenger-Gunner 29631 | -4/Factory | Fabricated M-13 Machinist (x1) 30158 | -4/Factory | Identified Vortex Chain Reactor 30179 | -4/Factory | Entered Extension 30180 | -4/Extension | Identified exit to Cetus 30385 | -4/Extension | Rescued A7 30496 | -4/Extension | Rescued a captive Derelict 30497 | -4/Extension | Rescued a captive Derelict 30526 | -4/Extension | Build established: Scavenger-Skirmisher 30603 | -4/Extension | Rescued a captive Derelict 30679 | -4/Extension | First assault squad dispatched 30897 | -4/Extension | Spotted B-86 Titan 30912 | -4/Extension | Allies destroyed B-86 Titan 30912 | -4/Extension | Spotted B-86 Titan 30918 | -4/Extension | Destroyed B-86 Titan 30976 | -4/Extension | Rescued a captive Derelict 31244 | -4/Extension | Rescued a captive Derelict 31245 | -4/Extension | Rescued a captive Derelict 31289 | -4/Extension | Rescued a captive Derelict 31293 | -4/Extension | Rescued a captive Derelict 31376 | -4/Extension | Rescued a captive Derelict 31445 | -4/Extension | Rescued a captive Derelict 31584 | -4/Extension | Build established: Commander-Tank 31640 | -4/Extension | Entered Cetus 31640 | -4/Cetus | Accompanied by 23 allies (A7) 31645 | -4/Cetus | Acquired a Cetus Manufacturing Module code from A7 31649 | -4/Cetus | Spotted Cetus Guard 31649 | -4/Cetus | Spotted Cetus Guard 31651 | -4/Cetus | Destroyed Cetus Guard 31658 | -4/Cetus | Destroyed Cetus Guard 31661 | -4/Cetus | Destroyed Cetus Guard 31664 | -4/Cetus | Spotted Cetus Guard 31668 | -4/Cetus | Allies destroyed Cetus Guard 31696 | -4/Cetus | Lost 5 allies 31730 | -4/Cetus | Started Cetus Manufacturing Module 31749 | -4/Cetus | Escorted A7 to Cetus Mainframe 31755 | -4/Cetus | Manufactured an Enhanced Grunt 31760 | -4/Cetus | Discovered new exit (range 16) 31780 | -4/Cetus | Manufactured an Enhanced Grunt 31788 | -4/Cetus | Spotted Cetus Guard 31788 | -4/Cetus | Destroyed Cetus Guard 31797 | -4/Cetus | Spotted Cetus Guard 31798 | -4/Cetus | Spotted Cetus Guard 31799 | -4/Cetus | Spotted Cetus Guard 31805 | -4/Cetus | Manufactured an Enhanced Grunt 31805 | -4/Cetus | Allies destroyed Cetus Guard 31809 | -4/Cetus | Allies destroyed Cetus Guard 31810 | -4/Cetus | Discovered exit to Research (range 16) 31813 | -4/Cetus | Destroyed Cetus Guard 31823 | -4/Cetus | Met Revision 17 31830 | -4/Cetus | Manufactured an Enhanced Grunt 31855 | -4/Cetus | Manufactured an Enhanced Grunt 31860 | -4/Cetus | Identified exit to Archives 32033 | -4/Cetus | Entered Archives 32033 | -4/Archives | Accompanied by 22 allies (A7) 32038 | -4/Archives | Received a hacking code to weaken MAIN.C 32080 | -4/Archives | Met Zhirov 32086 | -4/Archives | Reinforcements dispatched to Archives 32086 | -4/Archives | Discovered new exit (range 16) 32094 | -4/Archives | Discovered new exit (range 15) 32114 | -4/Archives | Build established: Commander-Gunner 32131 | -4/Archives | Reinforcements dispatched to Archives 32133 | -4/Archives | Identified exit to Hub_04(d) 32135 | -4/Archives | Entered Hub_04(d) 32164 | -4/Hub_04(d) | Lost 5 allies 32715 | -4/Hub_04(d) | Discovered exit to Research (range 5) 32835 | -4/Hub_04(d) | Build established: Scavenger-Skirmisher 32974 | -4/Hub_04(d) | Discovered exit to Research (range 10) 32974 | -4/Hub_04(d) | Network Hub disabled 32986 | -4/Hub_04(d) | System corruption reached 10% 33189 | -4/Hub_04(d) | Spotted B-86 Titan 33313 | -4/Hub_04(d) | Network Hub disabled 33313 | -4/Hub_04(d) | Network Hub disabled 33346 | -4/Hub_04(d) | Spotted Lightning 33351 | -4/Hub_04(d) | Spotted Lightning 33351 | -4/Hub_04(d) | Entered Research 33351 | -3/Research | Evolved 2 slots: Power x1, Utility x1 33352 | -3/Research | Identified exit to Research 33551 | -3/Research | Revision forces began assault on 0b10 33624 | -3/Research | Met up with Revision 17++ 33857 | -3/Research | Identified exit to Testing 34012 | -3/Research | Loaded intel: 5 recycling unit locations 34051 | -3/Research | Research terminal network offline 34053 | -3/Research | Found Prototype Launcher 34053 | -3/Research | Identified Com. Tesla Bomb Launcher 34115 | -3/Research | Spotted B-86 Titan 34303 | -3/Research | Spotted Striker 34311 | -3/Research | Spotted Executioner 34322 | -3/Research | Destroyed Executioner 34342 | -3/Research | Spotted Striker 34351 | -3/Research | Spotted Striker 34367 | -3/Research | Destroyed Striker 34380 | -3/Research | Spotted Striker 34392 | -3/Research | Destroyed Striker 34401 | -3/Research | Destroyed Striker 34414 | -3/Research | Lost 7 allies 34427 | -3/Research | Lost 3 parts (1p2u) 34450 | -3/Research | Build established: Scavenger-Mutant 34598 | -3/Research | Spotted B-86 Titan 35110 | -3/Research | Fabricated M-13 Machinist? 35218 | -3/Research | Build established: Scavenger-Skirmisher 35418 | -3/Research | Entered Testing 35651 | -3/Testing | Spotted PY-WZ8I9TMUIM 35675 | -3/Testing | Destroyed PY-WZ8I9TMUIM 35699 | -3/Testing | Found Prototype Device 35699 | -3/Testing | Identified Exp. Thermal Shield 35779 | -3/Testing | Build established: Scientist-Skirmisher 36116 | -3/Testing | Found Prototype Processor 36116 | -3/Testing | Identified Spectral Analyzer 36138 | -3/Testing | Found Prototype Energy Cannon 36138 | -3/Testing | Identified Potential Cannon 36143 | -3/Testing | Found Prototype Energy Cannon 36177 | -3/Testing | Found Prototype Energy Cannon 36178 | -3/Testing | Identified Cld. Nova Cannon 36520 | -3/Testing | Found Prototype Protection 36520 | -3/Testing | Identified SHELL Armor 36613 | -3/Testing | System corruption reached 10% 36728 | -3/Testing | Found Prototype Processor 36728 | -3/Testing | Identified Exp. Target Analyzer 36790 | -3/Testing | Rewired PD-5VUQ819UD5 36806 | -3/Testing | Entered Research 36806 | -2/Research | Accompanied by 1 ally 36806 | -2/Research | Evolved 2 slots: Utility x2 36811 | -2/Research | Destroyed PD-5VUQ819UD5 36842 | -2/Research | Found Quantum Capacitor 37001 | -2/Research | Identified exit to Access 37074 | -2/Research | Spotted B-90 Cyclops 37119 | -2/Research | Destroyed 9 combat bots 37205 | -2/Research | Destroyed 8 combat bots 37330 | -2/Research | Spotted B-90 Cyclops 37335 | -2/Research | Destroyed B-90 Cyclops 37373 | -2/Research | Build established: Scientist-Gunner 37415 | -2/Research | Central database locked down 37415 | -2/Research | Identified Imp. Potential Cannon 37537 | -2/Research | Assembled infested ambush trap array 37806 | -2/Research | First assault squad dispatched 37946 | -2/Research | Found Prototype Device 37946 | -2/Research | Identified Exp. EM Disruption Field 37963 | -2/Research | Discovered new exit (range 16) 37985 | -2/Research | Identified exit to Quarantine 38143 | -2/Research | System corruption reached 10% 38166 | -2/Research | Entered Quarantine 38185 | -2/Quarantine | Found Quantum Capacitor 38194 | -2/Quarantine | Found Quantum Capacitor 38213 | -2/Quarantine | Cryocooling Duct disabled 38215 | -2/Quarantine | Build established: Scavenger-Gunner 38228 | -2/Quarantine | Ambient heat levels rising (+20) 38228 | -2/Quarantine | Non-combat units ordered to evacuate 38239 | -2/Quarantine | Cryocooling Duct disabled 38254 | -2/Quarantine | Ambient heat levels rising (+20) 38254 | -2/Quarantine | Combat units ordered to evacuate 38354 | -2/Quarantine | Quarantine Guard activated 38389 | -2/Quarantine | Spotted Quarantine Guard 38393 | -2/Quarantine | Destroyed Quarantine Guard 38403 | -2/Quarantine | Spotted Quarantine Guard 38409 | -2/Quarantine | Destroyed Quarantine Guard 38483 | -2/Quarantine | Spotted Quarantine Guard 38492 | -2/Quarantine | Destroyed Quarantine Guard 38876 | -2/Quarantine | Spotted Quarantine Guard 38887 | -2/Quarantine | Destroyed Quarantine Guard 38894 | -2/Quarantine | Discovered exit to Access (range 14) 38894 | -2/Quarantine | Spotted Quarantine Guard 38896 | -2/Quarantine | Spotted Quarantine Guard 38901 | -2/Quarantine | Destroyed Quarantine Guard 38914 | -2/Quarantine | Destroyed Quarantine Guard 39063 | -2/Quarantine | Spotted Quarantine Guard 39075 | -2/Quarantine | Destroyed Quarantine Guard 39147 | -2/Quarantine | Spotted Quarantine Guard 39173 | -2/Quarantine | Destroyed Quarantine Guard 39374 | -2/Quarantine | Spotted Quarantine Guard 39381 | -2/Quarantine | Destroyed Quarantine Guard 39384 | -2/Quarantine | Spotted Quarantine Guard 39402 | -2/Quarantine | Destroyed Quarantine Guard 39547 | -2/Quarantine | Found Prototype Launcher 39547 | -2/Quarantine | Identified Enh. Gamma Bomb Array 39648 | -2/Quarantine | Repaired Biometal Leg+ 39672 | -2/Quarantine | Found Alien Slashing Weapon 39672 | -2/Quarantine | Identified Sigix Broadsword 39866 | -2/Quarantine | Build established: Scavenger-Mutant 40028 | -2/Quarantine | Found Alien Artifact 40142 | -2/Quarantine | Found Alien Impact Weapon 40142 | -2/Quarantine | Identified Core Stripper 40189 | -2/Quarantine | Found Alien Artifact 40196 | -2/Quarantine | Found Alien Artifact 40203 | -2/Quarantine | Found Alien Artifact 40267 | -2/Quarantine | Identified Dimensional Node Initializer 40267 | -2/Quarantine | Identified Hpw. Transdimensional Reconstructor (x2) 40267 | -2/Quarantine | Identified Subatomic Replicator 40505 | -2/Quarantine | Found Adv. Powered Armor 40651 | -2/Quarantine | Spotted Fortress 40670 | -2/Quarantine | Destroyed Fortress 40678 | -2/Quarantine | Found Prototype Device 40678 | -2/Quarantine | Identified Thermal Barrier 40686 | -2/Quarantine | Found Prototype Device 40686 | -2/Quarantine | Identified Exp. EM Shield 40690 | -2/Quarantine | Found Prototype Reactor 40690 | -2/Quarantine | Identified Vortex Chain Reactor 40694 | -2/Quarantine | Found Prototype Device 40694 | -2/Quarantine | Identified Exp. Force Field 40704 | -2/Quarantine | Found Prototype Protection 40704 | -2/Quarantine | Identified Centrium Heavy Armor Plating 40725 | -2/Quarantine | Found Vortex Chain Reactor 41043 | -2/Quarantine | Declared boring by mysterious "MATRIX" hacker. 41210 | -2/Quarantine | Discovered new exit (range 7) 41210 | -2/Quarantine | Discovered new exit (range 6) 41210 | -2/Quarantine | Spotted Quarantine Guard 41210 | -2/Quarantine | Spotted Quarantine Guard 41220 | -2/Quarantine | Destroyed Quarantine Guard 41226 | -2/Quarantine | Destroyed Quarantine Guard 41239 | -2/Quarantine | Identified exit to Protoforge 41254 | -2/Quarantine | Entered Protoforge 41331 | -2/Protoforge | Superfortress began startup sequence 41415 | -2/Protoforge | Spotted Hotshot 41422 | -2/Protoforge | Destroyed Hotshot 41463 | -2/Protoforge | Discovered exit to Access (range 6) 41474 | -2/Protoforge | Initialized slip node 41596 | -2/Protoforge | Found Prototype Device 41597 | -2/Protoforge | Identified Exp. Trap Extractor 41639 | -2/Protoforge | Additional patrols dispatched to research labs 41754 | -2/Protoforge | First assault squad dispatched 41794 | -2/Protoforge | Found Prototype Device 41803 | -2/Protoforge | Found Exp. System Purifier 41831 | -2/Protoforge | Spotted Immortal 41832 | -2/Protoforge | Spotted Immortal 41849 | -2/Protoforge | Destroyed Immortal 41853 | -2/Protoforge | Destroyed Immortal 41860 | -2/Protoforge | Spotted Decapitator 41860 | -2/Protoforge | Spotted Decapitator 41860 | -2/Protoforge | Spotted Decapitator 41860 | -2/Protoforge | Spotted Decapitator 41881 | -2/Protoforge | System corruption reached 30% 41950 | -2/Protoforge | Spotted Decapitator 41953 | -2/Protoforge | Spotted Decapitator 41959 | -2/Protoforge | Destroyed Decapitator 41959 | -2/Protoforge | Destroyed Decapitator 42008 | -2/Protoforge | Forge Plexus network access discovered 42052 | -2/Protoforge | Found Cep. Countertargeting System 42058 | -2/Protoforge | Found Cep. Weapon Articulator 42196 | -2/Protoforge | Destroyed 15 combat bots 42244 | -2/Protoforge | Spotted Decapitator 42244 | -2/Protoforge | Spotted V668-u 42244 | -2/Protoforge | Spotted V041-e 42245 | -2/Protoforge | Spotted Decapitator 42275 | -2/Protoforge | Destroyed Decapitator 42278 | -2/Protoforge | Destroyed Decapitator 42292 | -2/Protoforge | Destroyed V041-e 42310 | -2/Protoforge | Found Prototype Device 42310 | -2/Protoforge | Identified Exp. Shield Generator 42326 | -2/Protoforge | Found Cep. Chromion Battery 42334 | -2/Protoforge | Found Cep. Antigrav Storage Unit 42339 | -2/Protoforge | Found Cep. NT7 Matterbank 42343 | -2/Protoforge | Found Cep. Matter Streamer 42370 | -2/Protoforge | Identified Crosscalibrator 42536 | -2/Protoforge | Spotted V701-z 42561 | -2/Protoforge | Found Cep. Biometal Exoskeleton 42577 | -2/Protoforge | Spotted V918-q 42608 | -2/Protoforge | Spotted Immortal 42608 | -2/Protoforge | Spotted Immortal 42627 | -2/Protoforge | Destroyed Immortal 42629 | -2/Protoforge | Destroyed Immortal 42667 | -2/Protoforge | Destroyed 8 combat bots 42720 | -2/Protoforge | Found Faulty Cep. Plasma Driver 42725 | -2/Protoforge | Found Faulty Cep. Disintegration Ray 42732 | -2/Protoforge | Found Exp. Terror Saw 42735 | -2/Protoforge | Found Faulty Cep. Deflector Sword 42748 | -2/Protoforge | Found Faulty Cep. Deflector Sword 42782 | -2/Protoforge | Found Prototype Device 42782 | -2/Protoforge | Identified Exp. Weapon Cycler 42814 | -2/Protoforge | Found Faulty Cep. Plasma Driver 42817 | -2/Protoforge | Found Cep. Plasma Driver 42819 | -2/Protoforge | Found Cep. Lightning Penetrator 42831 | -2/Protoforge | Found Cep. Disintegration Ray 42961 | -2/Protoforge | Found Faulty Cep. Rapid Grenade Launcher 42964 | -2/Protoforge | Found Faulty Cep. Rapid Grenade Launcher 43020 | -2/Protoforge | Spotted AP7-3 43020 | -2/Protoforge | Spotted AP7-3 43026 | -2/Protoforge | Destroyed AP7-3 43043 | -2/Protoforge | Destroyed AP7-3 43070 | -2/Protoforge | Found Prototype Energy Gun 43070 | -2/Protoforge | Identified Enh. Gamma Rifle 43083 | -2/Protoforge | Found Prototype Device 43083 | -2/Protoforge | Identified Exp. ECM Suite 43102 | -2/Protoforge | Found Cep. Core Analysis Suite 43104 | -2/Protoforge | Found Faulty Cep. Core Analysis Suite 43108 | -2/Protoforge | Found Cep. Thermoelectric Network 43112 | -2/Protoforge | Found Faulty Cep. Thermoelectric Network 43274 | -2/Protoforge | Found Faulty Cep. Impact Drone Bay 43279 | -2/Protoforge | Found Cep. Impact Drone Bay 43286 | -2/Protoforge | Found Cep. Cloak Mesh 43343 | -2/Protoforge | Found Cep. Cloak Mesh 43345 | -2/Protoforge | Warped through subspace to slip node 43351 | -2/Protoforge | Entered Access 43351 | -1/Access | Evolved 2 slots: Utility x2 43372 | -1/Access | Energy Cycler disabled 43526 | -1/Access | Build established: Mutant 43530 | -1/Access | Unchained authorized (QV-33N) 43601 | -1/Access | First assault squad dispatched 43960 | -1/Access | Destroyed 12 combat bots 43988 | -1/Access | Discovered new exit (range 11) 44118 | -1/Access | Destroyed 7 combat bots 44153 | -1/Access | Found Thermal Barrier 44451 | -1/Access | Destroyed 15 combat bots 44688 | -1/Access | Found Quantum Capacitor 45217 | -1/Access | High security lockdown imminent 45240 | -1/Access | Destroyed 9 combat bots 45297 | -1/Access | High security lockdown engaged 45397 | -1/Access | Spotted Executioner 45421 | -1/Access | Destroyed 8 combat bots 45439 | -1/Access | Destroyed Executioner 45546 | -1/Access | Destroyed 47 combat bots 45584 | -1/Access | Sterilization system engaged 45623 | -1/Access | Spotted Executioner 45624 | -1/Access | Destroyed Executioner 45627 | -1/Access | Spotted Executioner 45627 | -1/Access | Spotted Executioner 45627 | -1/Access | Spotted Executioner 45627 | -1/Access | Destroyed Executioner 45628 | -1/Access | Destroyed Executioner 45633 | -1/Access | Destroyed Executioner 45649 | -1/Access | Spotted Executioner 45651 | -1/Access | Destroyed Executioner 45680 | -1/Access | Destroyed 31 combat bots 45724 | -1/Access | Destroyed 11 combat bots 45763 | -1/Access | Spotted Executioner 45771 | -1/Access | Spotted Executioner 45775 | -1/Access | Spotted Executioner 45782 | -1/Access | Destroyed Executioner 45790 | -1/Access | Destroyed Executioner 45792 | -1/Access | Destroyed Executioner 45810 | -1/Access | Found Adv. Kinecellerator 45817 | -1/Access | Destroyed 10 combat bots 45818 | -1/Access | Lost 7 parts (1p2n3u1w) 45884 | -1/Access | Ambient heat levels rising (+10) 45917 | -1/Access | Scanned by Researcher 45929 | -1/Access | Spotted Investigator 45943 | -1/Access | Build established: Scavenger-Mutant 45947 | -1/Access | Destroyed Investigator 45964 | -1/Access | Found Prototype Launcher 45997 | -1/Access | Found Vortex Chain Reactor 46034 | -1/Access | Ambient heat levels rising (+10) 46114 | -1/Access | Spotted B-99 Colossus 46119 | -1/Access | Destroyed B-99 Colossus 46184 | -1/Access | Ambient heat levels rising (+10) 46278 | -1/Access | Destroyed 7 combat bots 46288 | -1/Access | Build established: Scavenger-Gunner 46295 | -1/Access | Found Prototype Processor 46295 | -1/Access | Identified Exp. Signal Interpreter 46334 | -1/Access | Ambient heat levels rising (+10) 46484 | -1/Access | Ambient heat levels rising (+10) 46504 | -1/Access | Spotted B-99 Colossus 46519 | -1/Access | Destroyed B-99 Colossus 46634 | -1/Access | Ambient heat levels rising (+10) 46784 | -1/Access | Ambient heat levels rising (+10) 46934 | -1/Access | Ambient heat levels rising (+10) 47084 | -1/Access | Ambient heat levels rising (+10) 47130 | -1/Access | Destroyed B-99 Colossus 47234 | -1/Access | Ambient heat levels rising (+10) 47384 | -1/Access | Ambient heat levels rising (+10) 47534 | -1/Access | Ambient heat levels rising (+10) 47604 | -1/Access | Build established: Mutant 47684 | -1/Access | Ambient heat levels rising (+10) 47834 | -1/Access | Ambient heat levels rising (+10) 47984 | -1/Access | Ambient heat levels rising (+10) 47991 | -1/Access | Found Quantum Capacitor 48134 | -1/Access | Ambient heat levels rising (+10) 48284 | -1/Access | Ambient heat levels rising (+10) 48434 | -1/Access | Ambient heat levels rising (+10) 48584 | -1/Access | Ambient heat levels rising (+10) 48734 | -1/Access | Ambient heat levels rising (+10) 48785 | -1/Access | Discovered new exit (range 10) 48812 | -1/Access | Entered Command 48970 | -1/Command | Spotted M Guard 48970 | -1/Command | Spotted M Guard 48970 | -1/Command | Spotted Combat Programmer 48974 | -1/Command | Core integrity fell below 50% 48989 | -1/Command | Spotted Combat Programmer 48991 | -1/Command | Destroyed Combat Programmer 48993 | -1/Command | System corruption reached 10% 48994 | -1/Command | Destroyed Combat Programmer 49010 | -1/Command | Destroyed M Guard 49018 | -1/Command | Destroyed M Guard 49018 | -1/Command | All MAIN.C guards destroyed 49062 | -1/Command | First assault squad dispatched 49086 | -1/Command | Found Corrupted Thermal Barrier 49089 | -1/Command | Found Corrupted Prototype Reactor 49091 | -1/Command | Found Corrupted Prototype Reactor 49193 | -1/Command | Met MAIN.C 49193 | -1/Command | Hacked MAIN.C using A7's code 49201 | -1/Command | 0b10 Conduit disabled 49236 | -1/Command | Destroyed MAIN.C Shell 49237 | -1/Command | MAIN.C activated Command garrisons 49275 | -1/Command | Destroyed MAIN.C 49295 | -1/Command | Identified Zero-point Reactor 49295 | -1/Command | Discovered new exit (range 44) 49295 | -1/Command | Discovered new exit (range 91) 49295 | -1/Command | Extracted map data and part IDs from MAIN.C's data core 49389 | -1/Command | Found Exp. System Purifier 51560 | -1/Command | Build established: Scavenger-Mutant 51872 | -1/Command | Found Vortex Chain Reactor 51875 | -1/Command | Found Zero-point Reactor 51901 | -1/Command | Found Exp. Weapon Cycler 51905 | -1/Command | Found Adv. Particle Accelerator 51909 | -1/Command | Found Centrium Heavy Armor Plating 51929 | -1/Command | Found Perforator 52190 | -1/Command | Build established: Gunner 52339 | -1/Command | Found Exp. Targeting Computer 52603 | -1/Command | Found Quantum Capacitor 53407 | -1/Command | Used Subatomic Replicator to replicate Imp. Potential Cannon 53558 | -1/Command | Warped through subspace to slip node 53558 | -1/Command | Discovered new exit (range 5) 53564 | -1/Command | Entered Access_0 53565 | -1/Access_0 | Architect warped through subspace 53574 | -1/Access_0 | Destroyed A8 53663 | -1/Access_0 | Architect warped through subspace 53675 | -1/Access_0 | Found Exp. Phase Shifter 53723 | -1/Access_0 | A6 warped into view 53734 | -1/Access_0 | Destroyed A6 53738 | -1/Access_0 | Architect warped through subspace 53788 | -1/Access_0 | Architect warped through subspace 53840 | -1/Access_0 | Architect warped through subspace 53887 | -1/Access_0 | Architect warped through subspace 53896 | -1/Access_0 | Subspace Access Node disabled 53925 | -1/Access_0 | Architect warped through subspace 53958 | -1/Access_0 | Architect warped through subspace 53970 | -1/Access_0 | Found Spectral Analyzer 53980 | -1/Access_0 | Architect warped through subspace 53994 | -1/Access_0 | Architect warped through subspace 54013 | -1/Access_0 | Architect warped through subspace 54014 | -1/Access_0 | A5 warped into view 54016 | -1/Access_0 | Subspace Access Node disabled 54020 | -1/Access_0 | Destroyed A5 54041 | -1/Access_0 | Architect warped through subspace 54052 | -1/Access_0 | Architect warped through subspace 54065 | -1/Access_0 | Architect warped through subspace 54077 | -1/Access_0 | Architect warped through subspace 54084 | -1/Access_0 | Subspace Access Node disabled 54095 | -1/Access_0 | Build established: Mutant 54095 | -1/Access_0 | Architect warped through subspace 54109 | -1/Access_0 | Core integrity fell below 20% 54116 | -1/Access_0 | Subspace Access Node disabled 54177 | -1/Access_0 | Lost 5 parts (1p2n2u) 54348 | -1/Access_0 | A4 warped into view 54383 | -1/Access_0 | Allies destroyed A4 54398 | -1/Access_0 | Allies destroyed A2 54407 | -1/Access_0 | Extracted Singularity Gate Test 138-C access codes from A2's data core 54547 | -1/Access_0 | Found Integrated Mediator 54547 | -1/Access_0 | Installed Integrated Mediator, increased core attachment efficiency 54625 | -1/Access_0 | Singularity Gate disabled 54659 | -1/Access_0 | Singularity Gate disabled 54779 | -1/Access_0 | Allies destroyed Architect 54787 | -1/Access_0 | Extracted unknown sensor trigger ID from Architect's data core 54793 | -1/Access_0 | Found Hpw. Transdimensional Reconstructor 55106 | -1/Access_0 | Found Thermal Barrier 55180 | -1/Access_0 | Found Integrated Reactor 55180 | -1/Access_0 | Installed Integrated Reactor, increased core energy generation (+10) 55536 | -1/Access_0 | A3 warped into view 55576 | -1/Access_0 | Allies destroyed A3 55806 | -1/Access_0 | Found Hpw. Transdimensional Reconstructor 55976 | -1/Access_0 | Found Sigix Corpse 56263 | -1/Access_0 | Found Sigix Broadsword 56463 | -1/Access_0 | Lost 3 allies 56593 | -1/Access_0 | Warped through subspace to slip node 56593 | -1/Access_0 | Discovered new exit (range 8) 56602 | *** | Establishing 0b11! Last Messages --------------- 56492_ Enhanced Grunt system terminally corrupted. 56492_ Enhanced Grunt knocked back. 56492_ Destroyed Adv. Particle Charger. 56492_ Enhanced Grunt system corrupted by crushing effect. 56496_ Enhanced Grunt suffers critical hit (Smash). 56496_ Destroyed Enh. Flexi-carbon Leg. 56496_ Enhanced Grunt system corrupted by crushing effect. 56497_ Enhanced Grunt system terminally corrupted. 56509_ FW<=WSXVPF9WVTKHUJZH,NCKS5F8HFGWG Z 56591_ Impact Drone retrieved by Cep. Impact Drone Bay (no repairs). 56593_ Warped through subspace, drawn to slip node. 56593_ EXIT=FOUND Map ----- +----------------------------------------------------+ | | | | | | | | | | | | | | | | | | | | | | | | | | | | | | | | | ?????????????????????????????????????????????????? | | ?????????????????????????????????????????????????? | | ?????????????????????????????????????????????????? | | ?????????????????????????????????????????????????? | | ?????????????????????????????????????????????????? | | ?????????????????????????????????????????????????? | | ????????????????????????###??????????????????????? | | ???????????????????????## ##?????????????????????? | | ???????????????????????# #?????????????????????? | | ???????????????????????# @ #?????????????????????? | | ??????????????????????## #?????????????????????? | | ??????????????????????# #?????????????????????? | | ??????????????????????# ##?????????????????????? | | ??????????????????????## #?????????????????????? | | ??????????????????????# #?????????????????????? | | ??????????????????????# ##?????????????????????? | | ??????????????????????# < #?????????????????????? | | ??????????????????????# ##?????????????????????? | | ??????????????????????## #??????????????????????? | | ???????????????????????####??????????????????????? | | ?????????????????????????????????????????????????? | | ?????????????????????????????????????????????????? | | ?????????????????????????????????????????????????? | | ?????????????????????????????????????????????????? | | ?????????????????????????????????????????????????? | | ?????????????????????????????????????????????????? | | ?????????????????????????????????????????????????? | | ?????????????????????????????????????????????????? | | ?????????????????????????????????????????????????? | | ?????????????????????????????????????????????????? | | ?????????????????????????????????????????????????? | | ?????????????????????????????????????????????????? | | ?????????????????????????????????????????????????? | | ?????????????????????????????????????????????????? | +----------------------------------------------------+ Best States ------------- Heat Dissipation 153 Energy Generation 124 Energy Capacity 2000 Matter Stores 300 Matter Capacity 300 Sight Range 24 Robot Scan Range 18 Terrain Scan Range 24 Terrain Scan Density 10 ECM Strength 2 Cloak Strength 9 Power Amplification 40 Additional Mass Support 16 Base Temperature (-) 200 Corruption Block 20 Armor Coverage 1300 Resistance: TH 50 Resistance: EX 25 Resistance: EM 75 Weapon Shielding 90 Point Defense Rating 240 Projectile Deflection 15 Weapon Cycling 30 Phase Shifting 20 Evasion (%) 85 Targeting Accuracy 30 Melee Accuracy 12 Core Analysis 16 Armor Integrity Analysis 50 Recoil Reduction 6 Energy Filtering 50 Particle Charging 50 Kinecelleration 50 Offensive Hacking 32 Defensive Hacking 26 Authchip Count 2 Trap Extractor Capacity 6 Item Schematics ----------------- Adv. Hacking Suite | -6/Factory | Hacked Hyp. Gauss Cannon | -5/Factory | Scanalyzed Imp. System Restoration Module | -5/Factory | Scanalyzed Cmb. Linear Gravjet | -4/Factory | Scanalyzed Robot Schematics ------------------ M-13 Machinist | -10/Materials | Hacked Fabricated ------------ Adv. Particle Charger | x2 | -6/Factory | Preloaded Hyp. Gauss Cannon | x2 | -5/Factory M-13 Machinist | x1 | -4/Factory M-13 Machinist | x1 | -3/Research Repaired ---------- Adv. Kinecellerator | 12% | -5/Factory Imp. Heavy Armor Plating | 26% | -5/Factory Adv. Kinecellerator | 26% | -4/Factory Biometal Leg | 13% | -2/Quarantine Studied --------- Hyp. Gauss Cannon | -5/Factory | Hacked Flexi-carbon Leg | -5/Factory | Hacked Hvy. Missile Launcher | -5/Factory | Hacked Carbon-fiber Leg | -5/Factory | Hacked Thunder Leg | -5/Factory | Hacked Hyp. Mass Driver | -4/Factory | Hacked Cmb. Linear Gravjet | -3/Research | Hacked Nova Cannon | -3/Testing | Hacked Biometal Leg | -3/Testing | Hacked Adv. VSS Leg | -3/Testing | Hacked Imp. Thunder Leg | -3/Testing | Hacked Lgt. Antimatter Reactor | -3/Testing | Hacked Particle Reactor | -3/Testing | Hacked Centrium Leg | -2/Research | Hacked Enh. Nova Cannon | -2/Quarantine | Hacked Com. HERF Cannon | -2/Quarantine | Hacked Lgt. Quantum Reactor | -2/Quarantine | Hacked Quantum Reactor | -2/Quarantine | Hacked Myomer Leg | -2/Quarantine | Hacked Mic. Antimatter Reactor | -2/Quarantine | Hacked Alien Tech Used ----------------- Sigix Broadsword Core Stripper Dimensional Node Initializer High-powered Transdimensional Reconstructor Subatomic Replicator Integrated Mediator Integrated Reactor Achievements -------------- None Challenges ------------ None Game ------ Seed ScrapoidAntimatterWheel Manual? 0 Play Time 09:57:49 Cumulative 773.7 hours Start 2026.04.29 @ 20:06:41 End 2026.05.03 @ 20:25:53 Sessions 9 Manual Loads 0 Difficulty Rogue Special Mode None Game No. 227 Rogue 227 Adventurer 0 Explorer 0 Win Type 1 Total 29 Types 10/4/7/1/1/0/2/1/1/2 Lore% 95 Gallery% 88 Achievement% 82 Wizard Run 0 Options --------- Layout 1 ASCII 0 Keyboard 0 Movement Mouse Keybinds 0 Fullscreen 2 Font 32/SmallcapsGlow Map View 50x35 Zoom Use 0% Tactical HUD 1 Map Filters NONE Filters NONE Steam 1 RUN: 7f062884-2e18-47af-a3fe-df4ce7f0ffa2